{"text_format":"1","workbook":"xlsx","n_sheets":6,"sheets":["ACCUEIL","Suivi","Edition ANGLAIS","Edition FRANCAIS","Listes","Feuil1"],"not_rendered":{"charts":0,"images":3,"macros":1,"external_links":0,"defined_names":4,"comments":0,"pivot_tables":0},"unopened":[],"bounds":{"document_bytes":16777216,"sheet_cells":100000,"rows_first":2000,"rows_last":500,"rows_between":2000,"halvings":0,"cell_chars":16384,"cell_head_chars":4096},"cells_cut":0,"cells_raw":0,"read":"whole","date_system":"1900"}

{"sheet":"ACCUEIL","index":0,"n_rows":3,"n_cols":2,"rows_kept":3,"cut":false,"hidden":false,"merged":[[2,1,3,7]]}
[]
[]
[null,"Bienvenue dans l'outil de suivi REACH !"]

{"sheet":"Suivi","index":1,"n_rows":1048576,"n_cols":22,"rows_kept":4500,"cut":true,"hidden":false,"merged":[],"bounds":{"rows_first":2000,"rows_last":500,"rows_between":2000,"halvings":0}}
["N°","Numéro de suivi REACH","Date de création","Créateur","Type de la demande","Type de demandeur","Service / Société du demandeur","Nom du demandeur","Objet de la demande","Client demandeur","Code MOVEX","Code commercial","Désignation produit fini","Date limite de traitement","Date d'édition du certificat","Produit certificat","Date de clôture de la demande","Code fournisseur","Désignation fournisseur","Code MOVEX composant / matière impacté","Désignation composant / matière impacté","Commentaires"]
[1,1,"29/08/2016","Virginie REBOUILLEAU","Demande","Interne","HSE","Elanore","vdfsdf<sfs<df<","ABC",78545,851.56539999999995,"Premier produit","2016-02-09","2016-01-02",{"$f":"CONCATENATE(M2,\" (\",L2,\")\")","v":"Premier produit (851.5654)"},"2016-01-02",null,null,null,null,"Commentaires "]
[2,2,"24/08/2016","Jasmine HADJA","Demande","Externe","DD","dfgdgf","hfgh gj","dfh",8757,5646,"dfgfgjghj","13/09/2016",null,"dfgfgjghj (5646)",null,null,null,null,null,"fghfgh"]
[null,null,null,null,null,null,null,null,null,null,null,null,null,null,null," ()"]
[null,null,null,null,null,null,null,null,null,null,null,null,null,null,null," ()"]
[null,null,null,null,null,null,null,null,null,null,null,null,null,null,null," ()"]
[]
[null,null,null,null,null,null,null,null,null,null,null,null,null,null,null," ()"]
[null,null,null,null,null,null,null,null,null,null,null,null,null,null,null," ()"]
[null,null,null,null,null,null,null,null,null,null,null,null,null,null,null," ()"]
[null,null,null,null,null,null,null,null,null,null,null,null,null,null,null," ()"]
[null,null,null,null,null,null,null,null,null,null,null,null,null,null,null," ()"]
[null,null,null,null,null,null,null,null,null,null,null,null,null,null,null," ()"]
[null,null,null,null,null,null,null,null,null,null,null,null,null,null,null," ()"]
[null,null,null,null,null,null,null,null,null,null,null,null,null,null,null," ()"]
[null,null,null,null,null,null,null,null,null,null,null,null,null,null,null," ()"]
[null,null,null,null,null,null,null,null,null,null,null,null,null,null,null," ()"]
[null,null,null,null,null,null,null,null,null,null,null,null,null,null,null," ()"]
[null,null,null,null,null,null,null,null,null,null,null,null,null,null,null," ()"]
[null,null,null,null,null,null,null,null,null,null,null,null,null,null,null," ()"]
[null,null,null,null,null,null,null,null,null,null,null,null,null,null,null," ()"]
[null,null,null,null,null,null,null,null,null,null,null,null,null,null,null," ()"]
[null,null,null,null,null,null,null,null,null,null,null,null,null,null,null," ()"]
[null,null,null,null,null,null,null,null,null,null,null,null,null,null,null," ()"]
[null,null,null,null,null,null,null,null,null,null,null,null,null,null,null," ()"]
[null,null,null,null,null,null,null,null,null,null,null,null,null,null,null," ()"]
[null,null,null,null,null,null,null,null,null,null,null,null,null,null,null," ()"]
[null,null,null,null,null,null,null,null,null,null,null,null,null,null,null," ()"]
[null,null,null,null,null,null,null,null,null,null,null,null,null,null,null," ()"]
[null,null,null,null,null,null,null,null,null,null,null,null,null,null,null," ()"]
[null,null,null,null,null,null,null,null,null,null,null,null,null,null,null," ()"]
[null,null,null,null,null,null,null,null,null,null,null,null,null,null,null," ()"]
[null,null,null,null,null,null,null,null,null,null,null,null,null,null,null," ()"]
[null,null,null,null,null,null,null,null,null,null,null,null,null,null,null," ()"]
[null,null,null,null,null,null,null,null,null,null,null,null,null,null,null," ()"]
[null,null,null,null,null,null,null,null,null,null,null,null,null,null,null," ()"]
[null,null,null,null,null,null,null,null,null,null,null,null,null,null,null," ()"]
[null,null,null,null,null,null,null,null,null,null,null,null,null,null,null," ()"]
[null,null,null,null,null,null,null,null,null,null,null,null,null,null,null," ()"]
[null,null,null,null,null,null,null,null,null,null,null,null,null,null,null," ()"]
[null,null,null,null,null,null,null,null,null,null,null,null,null,null,null," ()"]
[null,null,null,null,null,null,null,null,null,null,null,null,null,null,null," ()"]
[null,null,null,null,null,null,null,null,null,null,null,null,null,null,null," ()"]
[null,null,null,null,null,null,null,null,null,null,null,null,null,null,null," ()"]
[null,null,null,null,null,null,null,null,null,null,null,null,null,null,null," ()"]
[null,null,null,null,null,null,null,null,null,null,null,null,null,null,null," ()"]
[null,null,null,null,null,null,null,null,null,null,null,null,null,null,null," ()"]
[null,null,null,null,null,null,null,null,null,null,null,null,null,null,null," ()"]
[null,null,null,null,null,null,null,null,null,null,null,null,null,null,null," ()"]
[null,null,null,null,null,null,null,null,null,null,null,null,null,null,null," ()"]
[null,null,null,null,null,null,null,null,null,null,null,null,null,null,null," ()"]
[null,null,null,null,null,null,null,null,null,null,null,null,null,null,null," ()"]
[null,null,null,null,null,null,null,null,null,null,null,null,null,null,null," ()"]
[null,null,null,null,null,null,null,null,null,null,null,null,null,null,null," ()"]
[null,null,null,null,null,null,null,null,null,null,null,null,null,null,null," ()"]
[null,null,null,null,null,null,null,null,null,null,null,null,null,null,null," ()"]
[null,null,null,null,null,null,null,null,null,null,null,null,null,null,null," ()"]
[null,null,null,null,null,null,null,null,null,null,null,null,null,null,null," ()"]
[null,null,null,null,null,null,null,null,null,null,null,null,null,null,null," ()"]
[null,null,null,null,null,null,null,null,null,null,null,null,null,null,null," ()"]
[null,null,null,null,null,null,null,null,null,null,null,null,null,null,null," ()"]
[null,null,null,null,null,null,null,null,null,null,null,null,null,null,null," ()"]
[null,null,null,null,null,null,null,null,null,null,null,null,null,null,null," ()"]
[null,null,null,null,null,null,null,null,null,null,null,null,null,null,null," ()"]
[null,null,null,null,null,null,null,null,null,null,null,null,null,null,null," ()"]
[null,null,null,null,null,null,null,null,null,null,null,null,null,null,null," ()"]
[null,null,null,null,null,null,null,null,null,null,null,null,null,null,null,{"$f":"CONCATENATE(M67,\" (\",L67,\")\")","v":" ()"}]
[null,null,null,null,null,null,null,null,null,null,null,null,null,null,null," ()"]
[null,null,null,null,null,null,null,null,null,null,null,null,null,null,null," ()"]
[null,null,null,null,null,null,null,null,null,null,null,null,null,null,null," ()"]
[null,null,null,null,null,null,null,null,null,null,null,null,null,null,null," ()"]
[null,null,null,null,null,null,null,null,null,null,null,null,null,null,null," ()"]
[null,null,null,null,null,null,null,null,null,null,null,null,null,null,null," ()"]
[null,null,null,null,null,null,null,null,null,null,null,null,null,null,null," ()"]
[null,null,null,null,null,null,null,null,null,null,null,null,null,null,null," ()"]
[null,null,null,null,null,null,null,null,null,null,null,null,null,null,null," ()"]
[null,null,null,null,null,null,null,null,null,null,null,null,null,null,null," ()"]
[null,null,null,null,null,null,null,null,null,null,null,null,null,null,null," ()"]
[null,null,null,null,null,null,null,null,null,null,null,null,null,null,null," ()"]
[null,null,null,null,null,null,null,null,null,null,null,null,null,null,null," ()"]
[null,null,null,null,null,null,null,null,null,null,null,null,null,null,null," ()"]
[null,null,null,null,null,null,null,null,null,null,null,null,null,null,null," ()"]
[null,null,null,null,null,null,null,null,null,null,null,null,null,null,null," ()"]
[null,null,null,null,null,null,null,null,null,null,null,null,null,null,null," ()"]
[null,null,null,null,null,null,null,null,null,null,null,null,null,null,null," ()"]
[null,null,null,null,null,null,null,null,null,null,null,null,null,null,null," ()"]
[null,null,null,null,null,null,null,null,null,null,null,null,null,null,null," ()"]
[null,null,null,null,null,null,null,null,null,null,null,null,null,null,null," ()"]
[null,null,null,null,null,null,null,null,null,null,null,null,null,null,null," ()"]
[null,null,null,null,null,null,null,null,null,null,null,null,null,null,null," ()"]
[null,null,null,null,null,null,null,null,null,null,null,null,null,null,null," ()"]
[null,null,null,null,null,null,null,null,null,null,null,null,null,null,null," ()"]
[null,null,null,null,null,null,null,null,null,null,null,null,null,null,null," ()"]
[null,null,null,null,null,null,null,null,null,null,null,null,null,null,null," ()"]
[null,null,null,null,null,null,null,null,null,null,null,null,null,null,null," ()"]
[null,null,null,null,null,null,null,null,null,null,null,null,null,null,null," ()"]
[null,null,null,null,null,null,null,null,null,null,null,null,null,null,null," ()"]
[null,null,null,null,null,null,null,null,null,null,null,null,null,null,null," ()"]
[null,null,null,null,null,null,null,null,null,null,null,null,null,null,null," ()"]
[null,null,null,null,null,null,null,null,null,null,null,null,null,null,null," ()"]
[null,null,null,null,null,null,null,null,null,null,null,null,null,null,null," ()"]
[null,null,null,null,null,null,null,null,null,null,null,null,null,null,null," ()"]
[null,null,null,null,null,null,null,null,null,null,null,null,null,null,null," ()"]
[null,null,null,null,null,null,null,null,null,null,null,null,null,null,null," ()"]
[null,null,null,null,null,null,null,null,null,null,null,null,null,null,null," ()"]
[null,null,null,null,null,null,null,null,null,null,null,null,null,null,null," ()"]
[null,null,null,null,null,null,null,null,null,null,null,null,null,null,null," ()"]
[null,null,null,null,null,null,null,null,null,null,null,null,null,null,null," ()"]
[null,null,null,null,null,null,null,null,null,null,null,null,null,null,null," ()"]
[null,null,null,null,null,null,null,null,null,null,null,null,null,null,null," ()"]
[null,{"$f":"CONCATENATE(A111)","v":""},null,null,null,null,null,null,null,null,null,null,null,null,null," ()"]
[null,"",null,null,null,null,null,null,null,null,null,null,null,null,null," ()"]
[null,"",null,null,null,null,null,null,null,null,null,null,null,null,null," ()"]
[null,"",null,null,null,null,null,null,null,null,null,null,null,null,null," ()"]
[null,"",null,null,null,null,null,null,null,null,null,null,null,null,null," ()"]
[null,"",null,null,null,null,null,null,null,null,null,null,null,null,null," ()"]
[null,"",null,null,null,null,null,null,null,null,null,null,null,null,null," ()"]
[null,"",null,null,null,null,null,null,null,null,null,null,null,null,null," ()"]
[null,"",null,null,null,null,null,null,null,null,null,null,null,null,null," ()"]
[null,"",null,null,null,null,null,null,null,null,null,null,null,null,null," ()"]
[null,"",null,null,null,null,null,null,null,null,null,null,null,null,null," ()"]
[null,"",null,null,null,null,null,null,null,null,null,null,null,null,null," ()"]
[null,"",null,null,null,null,null,null,null,null,null,null,null,null,null," ()"]
[null,"",null,null,null,null,null,null,null,null,null,null,null,null,null," ()"]
[null,"",null,null,null,null,null,null,null,null,null,null,null,null,null," ()"]
[null,"",null,null,null,null,null,null,null,null,null,null,null,null,null," ()"]
[null,"",null,null,null,null,null,null,null,null,null,null,null,null,null," ()"]
[null,"",null,null,null,null,null,null,null,null,null,null,null,null,null," ()"]
[null,"",null,null,null,null,null,null,null,null,null,null,null,null,null," ()"]
[null,"",null,null,null,null,null,null,null,null,null,null,null,null,null," ()"]
[null,"",null,null,null,null,null,null,null,null,null,null,null,null,null,{"$f":"CONCATENATE(M131,\" (\",L131,\")\")","v":" ()"}]
[null,"",null,null,null,null,null,null,null,null,null,null,null,null,null," ()"]
[null,"",null,null,null,null,null,null,null,null,null,null,null,null,null," ()"]
[null,"",null,null,null,null,null,null,null,null,null,null,null,null,null," ()"]
[null,"",null,null,null,null,null,null,null,null,null,null,null,null,null," ()"]
[null,"",null,null,null,null,null,null,null,null,null,null,null,null,null," ()"]
[null,"",null,null,null,null,null,null,null,null,null,null,null,null,null," ()"]
[null,"",null,null,null,null,null,null,null,null,null,null,null,null,null," ()"]
[null,"",null,null,null,null,null,null,null,null,null,null,null,null,null," ()"]
[null,"",null,null,null,null,null,null,null,null,null,null,null,null,null," ()"]
[null,"",null,null,null,null,null,null,null,null,null,null,null,null,null," ()"]
[null,"",null,null,null,null,null,null,null,null,null,null,null,null,null," ()"]
[null,"",null,null,null,null,null,null,null,null,null,null,null,null,null," ()"]
[null,"",null,null,null,null,null,null,null,null,null,null,null,null,null," ()"]
[null,"",null,null,null,null,null,null,null,null,null,null,null,null,null," ()"]
[null,"",null,null,null,null,null,null,null,null,null,null,null,null,null," ()"]
[null,"",null,null,null,null,null,null,null,null,null,null,null,null,null," ()"]
[null,"",null,null,null,null,null,null,null,null,null,null,null,null,null," ()"]
[null,"",null,null,null,null,null,null,null,null,null,null,null,null,null," ()"]
[null,"",null,null,null,null,null,null,null,null,null,null,null,null,null," ()"]
[null,"",null,null,null,null,null,null,null,null,null,null,null,null,null," ()"]
[null,"",null,null,null,null,null,null,null,null,null,null,null,null,null," ()"]
[null,"",null,null,null,null,null,null,null,null,null,null,null,null,null," ()"]
[null,"",null,null,null,null,null,null,null,null,null,null,null,null,null," ()"]
[null,"",null,null,null,null,null,null,null,null,null,null,null,null,null," ()"]
[null,"",null,null,null,null,null,null,null,null,null,null,null,null,null," ()"]
[null,"",null,null,null,null,null,null,null,null,null,null,null,null,null," ()"]
[null,"",null,null,null,null,null,null,null,null,null,null,null,null,null," ()"]
[null,"",null,null,null,null,null,null,null,null,null,null,null,null,null," ()"]
[null,"",null,null,null,null,null,null,null,null,null,null,null,null,null," ()"]
[null,"",null,null,null,null,null,null,null,null,null,null,null,null,null," ()"]
[null,"",null,null,null,null,null,null,null,null,null,null,null,null,null," ()"]
[null,"",null,null,null,null,null,null,null,null,null,null,null,null,null," ()"]
[null,"",null,null,null,null,null,null,null,null,null,null,null,null,null," ()"]
[null,"",null,null,null,null,null,null,null,null,null,null,null,null,null," ()"]
[null,{"$f":"CONCATENATE(A166)","v":""},null,null,null,null,null,null,null,null,null,null,null,null,null," ()"]
[null,"",null,null,null,null,null,null,null,null,null,null,null,null,null," ()"]
[null,"",null,null,null,null,null,null,null,null,null,null,null,null,null," ()"]
[null,"",null,null,null,null,null,null,null,null,null,null,null,null,null," ()"]
[null,"",null,null,null,null,null,null,null,null,null,null,null,null,null," ()"]
[null,"",null,null,null,null,null,null,null,null,null,null,null,null,null," ()"]
[null,"",null,null,null,null,null,null,null,null,null,null,null,null,null," ()"]
[null,"",null,null,null,null,null,null,null,null,null,null,null,null,null," ()"]
[null,"",null,null,null,null,null,null,null,null,null,null,null,null,null," ()"]
[null,"",null,null,null,null,null,null,null,null,null,null,null,null,null," ()"]
[null,"",null,null,null,null,null,null,null,null,null,null,null,null,null," ()"]
[null,"",null,null,null,null,null,null,null,null,null,null,null,null,null," ()"]
[null,"",null,null,null,null,null,null,null,null,null,null,null,null,null," ()"]
[null,"",null,null,null,null,null,null,null,null,null,null,null,null,null," ()"]
[null,"",null,null,null,null,null,null,null,null,null,null,null,null,null," ()"]
[null,"",null,null,null,null,null,null,null,null,null,null,null,null,null," ()"]
[null,"",null,null,null,null,null,null,null,null,null,null,null,null,null," ()"]
[null,"",null,null,null,null,null,null,null,null,null,null,null,null,null," ()"]
[null,"",null,null,null,null,null,null,null,null,null,null,null,null,null," ()"]
[null,"",null,null,null,null,null,null,null,null,null,null,null,null,null," ()"]
[null,"",null,null,null,null,null,null,null,null,null,null,null,null,null," ()"]
[null,"",null,null,null,null,null,null,null,null,null,null,null,null,null," ()"]
[null,"",null,null,null,null,null,null,null,null,null,null,null,null,null," ()"]
[null,"",null,null,null,null,null,null,null,null,null,null,null,null,null," ()"]
[null,"",null,null,null,null,null,null,null,null,null,null,null,null,null," ()"]
[null,"",null,null,null,null,null,null,null,null,null,null,null,null,null," ()"]
[null,"",null,null,null,null,null,null,null,null,null,null,null,null,null," ()"]
[null,"",null,null,null,null,null,null,null,null,null,null,null,null,null," ()"]
[null,"",null,null,null,null,null,null,null,null,null,null,null,null,null," ()"]
[null,"",null,null,null,null,null,null,null,null,null,null,null,null,null,{"$f":"CONCATENATE(M195,\" (\",L195,\")\")","v":" ()"}]
[null,"",null,null,null,null,null,null,null,null,null,null,null,null,null," ()"]
[null,"",null,null,null,null,null,null,null,null,null,null,null,null,null," ()"]
[null,"",null,null,null,null,null,null,null,null,null,null,null,null,null," ()"]
[null,"",null,null,null,null,null,null,null,null,null,null,null,null,null," ()"]
[null,"",null,null,null,null,null,null,null,null,null,null,null,null,null," ()"]
[null,"",null,null,null,null,null,null,null,null,null,null,null,null,null," ()"]
[null,"",null,null,null,null,null,null,null,null,null,null,null,null,null," ()"]
[null,"",null,null,null,null,null,null,null,null,null,null,null,null,null," ()"]
[null,"",null,null,null,null,null,null,null,null,null,null,null,null,null," ()"]
[null,"",null,null,null,null,null,null,null,null,null,null,null,null,null," ()"]
[null,"",null,null,null,null,null,null,null,null,null,null,null,null,null," ()"]
[null,"",null,null,null,null,null,null,null,null,null,null,null,null,null," ()"]
[null,"",null,null,null,null,null,null,null,null,null,null,null,null,null," ()"]
[null,"",null,null,null,null,null,null,null,null,null,null,null,null,null," ()"]
[null,"",null,null,null,null,null,null,null,null,null,null,null,null,null," ()"]
[null,"",null,null,null,null,null,null,null,null,null,null,null,null,null," ()"]
[null,"",null,null,null,null,null,null,null,null,null,null,null,null,null," ()"]
[null,"",null,null,null,null,null,null,null,null,null,null,null,null,null," ()"]
[null,"",null,null,null,null,null,null,null,null,null,null,null,null,null," ()"]
[null,"",null,null,null,null,null,null,null,null,null,null,null,null,null," ()"]
[null,"",null,null,null,null,null,null,null,null,null,null,null,null,null," ()"]
[null,"",null,null,null,null,null,null,null,null,null,null,null,null,null," ()"]
[null,"",null,null,null,null,null,null,null,null,null,null,null,null,null," ()"]
[null,"",null,null,null,null,null,null,null,null,null,null,null,null,null," ()"]
[null,"",null,null,null,null,null,null,null,null,null,null,null,null,null," ()"]
[null,"",null,null,null,null,null,null,null,null,null,null,null,null,null," ()"]
[null,"",null,null,null,null,null,null,null,null,null,null,null,null,null," ()"]
[null,"",null,null,null,null,null,null,null,null,null,null,null,null,null," ()"]
[null,"",null,null,null,null,null,null,null,null,null,null,null,null,null," ()"]
[null,"",null,null,null,null,null,null,null,null,null,null,null,null,null," ()"]
[null,"",null,null,null,null,null,null,null,null,null,null,null,null,null," ()"]
[null,"",null,null,null,null,null,null,null,null,null,null,null,null,null," ()"]
[null,"",null,null,null,null,null,null,null,null,null,null,null,null,null," ()"]
[null,"",null,null,null,null,null,null,null,null,null,null,null,null,null," ()"]
[null,{"$f":"CONCATENATE(A230)","v":""},null,null,null,null,null,null,null,null,null,null,null,null,null," ()"]
[null,"",null,null,null,null,null,null,null,null,null,null,null,null,null," ()"]
[null,"",null,null,null,null,null,null,null,null,null,null,null,null,null," ()"]
[null,"",null,null,null,null,null,null,null,null,null,null,null,null,null," ()"]
[null,"",null,null,null,null,null,null,null,null,null,null,null,null,null," ()"]
[null,"",null,null,null,null,null,null,null,null,null,null,null,null,null," ()"]
[null,"",null,null,null,null,null,null,null,null,null,null,null,null,null," ()"]
[null,"",null,null,null,null,null,null,null,null,null,null,null,null,null," ()"]
[null,"",null,null,null,null,null,null,null,null,null,null,null,null,null," ()"]
[null,"",null,null,null,null,null,null,null,null,null,null,null,null,null," ()"]
[null,"",null,null,null,null,null,null,null,null,null,null,null,null,null," ()"]
[null,"",null,null,null,null,null,null,null,null,null,null,null,null,null," ()"]
[null,"",null,null,null,null,null,null,null,null,null,null,null,null,null," ()"]
[null,"",null,null,null,null,null,null,null,null,null,null,null,null,null," ()"]
[null,"",null,null,null,null,null,null,null,null,null,null,null,null,null," ()"]
[null,"",null,null,null,null,null,null,null,null,null,null,null,null,null," ()"]
[null,"",null,null,null,null,null,null,null,null,null,null,null,null,null," ()"]
[null,"",null,null,null,null,null,null,null,null,null,null,null,null,null," ()"]
[null,"",null,null,null,null,null,null,null,null,null,null,null,null,null," ()"]
[null,"",null,null,null,null,null,null,null,null,null,null,null,null,null," ()"]
[null,"",null,null,null,null,null,null,null,null,null,null,null,null,null," ()"]
[null,"",null,null,null,null,null,null,null,null,null,null,null,null,null," ()"]
[null,"",null,null,null,null,null,null,null,null,null,null,null,null,null," ()"]
[null,"",null,null,null,null,null,null,null,null,null,null,null,null,null," ()"]
[null,"",null,null,null,null,null,null,null,null,null,null,null,null,null," ()"]
[null,"",null,null,null,null,null,null,null,null,null,null,null,null,null," ()"]
[null,"",null,null,null,null,null,null,null,null,null,null,null,null,null," ()"]
[null,"",null,null,null,null,null,null,null,null,null,null,null,null,null," ()"]
[null,"",null,null,null,null,null,null,null,null,null,null,null,null,null," ()"]
[null,"",null,null,null,null,null,null,null,null,null,null,null,null,null,{"$f":"CONCATENATE(M259,\" (\",L259,\")\")","v":" ()"}]
[null,"",null,null,null,null,null,null,null,null,null,null,null,null,null," ()"]
[null,"",null,null,null,null,null,null,null,null,null,null,null,null,null," ()"]
[null,"",null,null,null,null,null,null,null,null,null,null,null,null,null," ()"]
[null,"",null,null,null,null,null,null,null,null,null,null,null,null,null," ()"]
[null,"",null,null,null,null,null,null,null,null,null,null,null,null,null," ()"]
[null,"",null,null,null,null,null,null,null,null,null,null,null,null,null," ()"]
[null,"",null,null,null,null,null,null,null,null,null,null,null,null,null," ()"]
[null,"",null,null,null,null,null,null,null,null,null,null,null,null,null," ()"]
[null,"",null,null,null,null,null,null,null,null,null,null,null,null,null," ()"]
[null,"",null,null,null,null,null,null,null,null,null,null,null,null,null," ()"]
[null,"",null,null,null,null,null,null,null,null,null,null,null,null,null," ()"]
[null,"",null,null,null,null,null,null,null,null,null,null,null,null,null," ()"]
[null,"",null,null,null,null,null,null,null,null,null,null,null,null,null," ()"]
[null,"",null,null,null,null,null,null,null,null,null,null,null,null,null," ()"]
[null,"",null,null,null,null,null,null,null,null,null,null,null,null,null," ()"]
[null,"",null,null,null,null,null,null,null,null,null,null,null,null,null," ()"]
[null,"",null,null,null,null,null,null,null,null,null,null,null,null,null," ()"]
[null,"",null,null,null,null,null,null,null,null,null,null,null,null,null," ()"]
[null,"",null,null,null,null,null,null,null,null,null,null,null,null,null," ()"]
[null,"",null,null,null,null,null,null,null,null,null,null,null,null,null," ()"]
[null,"",null,null,null,null,null,null,null,null,null,null,null,null,null," ()"]
[null,"",null,null,null,null,null,null,null,null,null,null,null,null,null," ()"]
[null,"",null,null,null,null,null,null,null,null,null,null,null,null,null," ()"]
[null,"",null,null,null,null,null,null,null,null,null,null,null,null,null," ()"]
[null,"",null,null,null,null,null,null,null,null,null,null,null,null,null," ()"]
[null,"",null,null,null,null,null,null,null,null,null,null,null,null,null," ()"]
[null,"",null,null,null,null,null,null,null,null,null,null,null,null,null," ()"]
[null,"",null,null,null,null,null,null,null,null,null,null,null,null,null," ()"]
[null,"",null,null,null,null,null,null,null,null,null,null,null,null,null," ()"]
[null,"",null,null,null,null,null,null,null,null,null,null,null,null,null," ()"]
[null,"",null,null,null,null,null,null,null,null,null,null,null,null,null," ()"]
[null,"",null,null,null,null,null,null,null,null,null,null,null,null,null," ()"]
[null,"",null,null,null,null,null,null,null,null,null,null,null,null,null," ()"]
[null,"",null,null,null,null,null,null,null,null,null,null,null,null,null," ()"]
[null,{"$f":"CONCATENATE(A294)","v":""},null,null,null,null,null,null,null,null,null,null,null,null,null," ()"]
[null,"",null,null,null,null,null,null,null,null,null,null,null,null,null," ()"]
[null,"",null,null,null,null,null,null,null,null,null,null,null,null,null," ()"]
[null,"",null,null,null,null,null,null,null,null,null,null,null,null,null," ()"]
[null,"",null,null,null,null,null,null,null,null,null,null,null,null,null," ()"]
[null,"",null,null,null,null,null,null,null,null,null,null,null,null,null," ()"]
[null,"",null,null,null,null,null,null,null,null,null,null,null,null,null," ()"]
[null,"",null,null,null,null,null,null,null,null,null,null,null,null,null," ()"]
[null,"",null,null,null,null,null,null,null,null,null,null,null,null,null," ()"]
[null,"",null,null,null,null,null,null,null,null,null,null,null,null,null," ()"]
[null,"",null,null,null,null,null,null,null,null,null,null,null,null,null," ()"]
[null,"",null,null,null,null,null,null,null,null,null,null,null,null,null," ()"]
[null,"",null,null,null,null,null,null,null,null,null,null,null,null,null," ()"]
[null,"",null,null,null,null,null,null,null,null,null,null,null,null,null," ()"]
[null,"",null,null,null,null,null,null,null,null,null,null,null,null,null," ()"]
[null,"",null,null,null,null,null,null,null,null,null,null,null,null,null," ()"]
[null,"",null,null,null,null,null,null,null,null,null,null,null,null,null," ()"]
[null,"",null,null,null,null,null,null,null,null,null,null,null,null,null," ()"]
[null,"",null,null,null,null,null,null,null,null,null,null,null,null,null," ()"]
[null,"",null,null,null,null,null,null,null,null,null,null,null,null,null," ()"]
[null,"",null,null,null,null,null,null,null,null,null,null,null,null,null," ()"]
[null,"",null,null,null,null,null,null,null,null,null,null,null,null,null," ()"]
[null,"",null,null,null,null,null,null,null,null,null,null,null,null,null," ()"]
[null,"",null,null,null,null,null,null,null,null,null,null,null,null,null," ()"]
[null,"",null,null,null,null,null,null,null,null,null,null,null,null,null," ()"]
[null,"",null,null,null,null,null,null,null,null,null,null,null,null,null," ()"]
[null,"",null,null,null,null,null,null,null,null,null,null,null,null,null," ()"]
[null,"",null,null,null,null,null,null,null,null,null,null,null,null,null," ()"]
[null,"",null,null,null,null,null,null,null,null,null,null,null,null,null," ()"]
[null,"",null,null,null,null,null,null,null,null,null,null,null,null,null,{"$f":"CONCATENATE(M323,\" (\",L323,\")\")","v":" ()"}]
[null,"",null,null,null,null,null,null,null,null,null,null,null,null,null," ()"]
[null,"",null,null,null,null,null,null,null,null,null,null,null,null,null," ()"]
[null,"",null,null,null,null,null,null,null,null,null,null,null,null,null," ()"]
[null,"",null,null,null,null,null,null,null,null,null,null,null,null,null," ()"]
[null,"",null,null,null,null,null,null,null,null,null,null,null,null,null," ()"]
[null,"",null,null,null,null,null,null,null,null,null,null,null,null,null," ()"]
[null,"",null,null,null,null,null,null,null,null,null,null,null,null,null," ()"]
[null,"",null,null,null,null,null,null,null,null,null,null,null,null,null," ()"]
[null,"",null,null,null,null,null,null,null,null,null,null,null,null,null," ()"]
[null,"",null,null,null,null,null,null,null,null,null,null,null,null,null," ()"]
[null,"",null,null,null,null,null,null,null,null,null,null,null,null,null," ()"]
[null,"",null,null,null,null,null,null,null,null,null,null,null,null,null," ()"]
[null,"",null,null,null,null,null,null,null,null,null,null,null,null,null," ()"]
[null,"",null,null,null,null,null,null,null,null,null,null,null,null,null," ()"]
[null,"",null,null,null,null,null,null,null,null,null,null,null,null,null," ()"]
[null,"",null,null,null,null,null,null,null,null,null,null,null,null,null," ()"]
[null,"",null,null,null,null,null,null,null,null,null,null,null,null,null," ()"]
[null,"",null,null,null,null,null,null,null,null,null,null,null,null,null," ()"]
[null,"",null,null,null,null,null,null,null,null,null,null,null,null,null," ()"]
[null,"",null,null,null,null,null,null,null,null,null,null,null,null,null," ()"]
[null,"",null,null,null,null,null,null,null,null,null,null,null,null,null," ()"]
[null,"",null,null,null,null,null,null,null,null,null,null,null,null,null," ()"]
[null,"",null,null,null,null,null,null,null,null,null,null,null,null,null," ()"]
[null,"",null,null,null,null,null,null,null,null,null,null,null,null,null," ()"]
[null,"",null,null,null,null,null,null,null,null,null,null,null,null,null," ()"]
[null,"",null,null,null,null,null,null,null,null,null,null,null,null,null," ()"]
[null,"",null,null,null,null,null,null,null,null,null,null,null,null,null," ()"]
[null,"",null,null,null,null,null,null,null,null,null,null,null,null,null," ()"]
[null,"",null,null,null,null,null,null,null,null,null,null,null,null,null," ()"]
[null,"",null,null,null,null,null,null,null,null,null,null,null,null,null," ()"]
[null,"",null,null,null,null,null,null,null,null,null,null,null,null,null," ()"]
[null,"",null,null,null,null,null,null,null,null,null,null,null,null,null," ()"]
[null,"",null,null,null,null,null,null,null,null,null,null,null,null,null," ()"]
[null,"",null,null,null,null,null,null,null,null,null,null,null,null,null," ()"]
[null,{"$f":"CONCATENATE(A358)","v":""},null,null,null,null,null,null,null,null,null,null,null,null,null," ()"]
[null,"",null,null,null,null,null,null,null,null,null,null,null,null,null," ()"]
[null,"",null,null,null,null,null,null,null,null,null,null,null,null,null," ()"]
[null,"",null,null,null,null,null,null,null,null,null,null,null,null,null," ()"]
[null,"",null,null,null,null,null,null,null,null,null,null,null,null,null," ()"]
[null,"",null,null,null,null,null,null,null,null,null,null,null,null,null," ()"]
[null,"",null,null,null,null,null,null,null,null,null,null,null,null,null," ()"]
[null,"",null,null,null,null,null,null,null,null,null,null,null,null,null," ()"]
[null,"",null,null,null,null,null,null,null,null,null,null,null,null,null," ()"]
[null,"",null,null,null,null,null,null,null,null,null,null,null,null,null," ()"]
[null,"",null,null,null,null,null,null,null,null,null,null,null,null,null," ()"]
[null,"",null,null,null,null,null,null,null,null,null,null,null,null,null," ()"]
[null,"",null,null,null,null,null,null,null,null,null,null,null,null,null," ()"]
[null,"",null,null,null,null,null,null,null,null,null,null,null,null,null," ()"]
[null,"",null,null,null,null,null,null,null,null,null,null,null,null,null," ()"]
[null,"",null,null,null,null,null,null,null,null,null,null,null,null,null," ()"]
[null,"",null,null,null,null,null,null,null,null,null,null,null,null,null," ()"]
[null,"",null,null,null,null,null,null,null,null,null,null,null,null,null," ()"]
[null,"",null,null,null,null,null,null,null,null,null,null,null,null,null," ()"]
[null,"",null,null,null,null,null,null,null,null,null,null,null,null,null," ()"]
[null,"",null,null,null,null,null,null,null,null,null,null,null,null,null," ()"]
[null,"",null,null,null,null,null,null,null,null,null,null,null,null,null," ()"]
[null,"",null,null,null,null,null,null,null,null,null,null,null,null,null," ()"]
[null,"",null,null,null,null,null,null,null,null,null,null,null,null,null," ()"]
[null,"",null,null,null,null,null,null,null,null,null,null,null,null,null," ()"]
[null,"",null,null,null,null,null,null,null,null,null,null,null,null,null," ()"]
[null,"",null,null,null,null,null,null,null,null,null,null,null,null,null," ()"]
[null,"",null,null,null,null,null,null,null,null,null,null,null,null,null," ()"]
[null,"",null,null,null,null,null,null,null,null,null,null,null,null,null," ()"]
[null,"",null,null,null,null,null,null,null,null,null,null,null,null,null,{"$f":"CONCATENATE(M387,\" (\",L387,\")\")","v":" ()"}]
[null,"",null,null,null,null,null,null,null,null,null,null,null,null,null," ()"]
[null,"",null,null,null,null,null,null,null,null,null,null,null,null,null," ()"]
[null,"",null,null,null,null,null,null,null,null,null,null,null,null,null," ()"]
[null,"",null,null,null,null,null,null,null,null,null,null,null,null,null," ()"]
[null,"",null,null,null,null,null,null,null,null,null,null,null,null,null," ()"]
[null,"",null,null,null,null,null,null,null,null,null,null,null,null,null," ()"]
[null,"",null,null,null,null,null,null,null,null,null,null,null,null,null," ()"]
[null,"",null,null,null,null,null,null,null,null,null,null,null,null,null," ()"]
[null,"",null,null,null,null,null,null,null,null,null,null,null,null,null," ()"]
[null,"",null,null,null,null,null,null,null,null,null,null,null,null,null," ()"]
[null,"",null,null,null,null,null,null,null,null,null,null,null,null,null," ()"]
[null,"",null,null,null,null,null,null,null,null,null,null,null,null,null," ()"]
[null,"",null,null,null,null,null,null,null,null,null,null,null,null,null," ()"]
[null,"",null,null,null,null,null,null,null,null,null,null,null,null,null," ()"]
[null,"",null,null,null,null,null,null,null,null,null,null,null,null,null," ()"]
[null,"",null,null,null,null,null,null,null,null,null,null,null,null,null," ()"]
[null,"",null,null,null,null,null,null,null,null,null,null,null,null,null," ()"]
[null,"",null,null,null,null,null,null,null,null,null,null,null,null,null," ()"]
[null,"",null,null,null,null,null,null,null,null,null,null,null,null,null," ()"]
[null,"",null,null,null,null,null,null,null,null,null,null,null,null,null," ()"]
[null,"",null,null,null,null,null,null,null,null,null,null,null,null,null," ()"]
[null,"",null,null,null,null,null,null,null,null,null,null,null,null,null," ()"]
[null,"",null,null,null,null,null,null,null,null,null,null,null,null,null," ()"]
[null,"",null,null,null,null,null,null,null,null,null,null,null,null,null," ()"]
[null,"",null,null,null,null,null,null,null,null,null,null,null,null,null," ()"]
[null,"",null,null,null,null,null,null,null,null,null,null,null,null,null," ()"]
[null,"",null,null,null,null,null,null,null,null,null,null,null,null,null," ()"]
[null,"",null,null,null,null,null,null,null,null,null,null,null,null,null," ()"]
[null,"",null,null,null,null,null,null,null,null,null,null,null,null,null," ()"]
[null,"",null,null,null,null,null,null,null,null,null,null,null,null,null," ()"]
[null,"",null,null,null,null,null,null,null,null,null,null,null,null,null," ()"]
[null,"",null,null,null,null,null,null,null,null,null,null,null,null,null," ()"]
[null,"",null,null,null,null,null,null,null,null,null,null,null,null,null," ()"]
[null,"",null,null,null,null,null,null,null,null,null,null,null,null,null," ()"]
[null,{"$f":"CONCATENATE(A422)","v":""},null,null,null,null,null,null,null,null,null,null,null,null,null," ()"]
[null,"",null,null,null,null,null,null,null,null,null,null,null,null,null," ()"]
[null,"",null,null,null,null,null,null,null,null,null,null,null,null,null," ()"]
[null,"",null,null,null,null,null,null,null,null,null,null,null,null,null," ()"]
[null,"",null,null,null,null,null,null,null,null,null,null,null,null,null," ()"]
[null,"",null,null,null,null,null,null,null,null,null,null,null,null,null," ()"]
[null,"",null,null,null,null,null,null,null,null,null,null,null,null,null," ()"]
[null,"",null,null,null,null,null,null,null,null,null,null,null,null,null," ()"]
[null,"",null,null,null,null,null,null,null,null,null,null,null,null,null," ()"]
[null,"",null,null,null,null,null,null,null,null,null,null,null,null,null," ()"]
[null,"",null,null,null,null,null,null,null,null,null,null,null,null,null," ()"]
[null,"",null,null,null,null,null,null,null,null,null,null,null,null,null," ()"]
[null,"",null,null,null,null,null,null,null,null,null,null,null,null,null," ()"]
[null,"",null,null,null,null,null,null,null,null,null,null,null,null,null," ()"]
[null,"",null,null,null,null,null,null,null,null,null,null,null,null,null," ()"]
[null,"",null,null,null,null,null,null,null,null,null,null,null,null,null," ()"]
[null,"",null,null,null,null,null,null,null,null,null,null,null,null,null," ()"]
[null,"",null,null,null,null,null,null,null,null,null,null,null,null,null," ()"]
[null,"",null,null,null,null,null,null,null,null,null,null,null,null,null," ()"]
[null,"",null,null,null,null,null,null,null,null,null,null,null,null,null," ()"]
[null,"",null,null,null,null,null,null,null,null,null,null,null,null,null," ()"]
[null,"",null,null,null,null,null,null,null,null,null,null,null,null,null," ()"]
[null,"",null,null,null,null,null,null,null,null,null,null,null,null,null," ()"]
[null,"",null,null,null,null,null,null,null,null,null,null,null,null,null," ()"]
[null,"",null,null,null,null,null,null,null,null,null,null,null,null,null," ()"]
[null,"",null,null,null,null,null,null,null,null,null,null,null,null,null," ()"]
[null,"",null,null,null,null,null,null,null,null,null,null,null,null,null," ()"]
[null,"",null,null,null,null,null,null,null,null,null,null,null,null,null," ()"]
[null,"",null,null,null,null,null,null,null,null,null,null,null,null,null," ()"]
[null,"",null,null,null,null,null,null,null,null,null,null,null,null,null,{"$f":"CONCATENATE(M451,\" (\",L451,\")\")","v":" ()"}]
[null,"",null,null,null,null,null,null,null,null,null,null,null,null,null," ()"]
[null,"",null,null,null,null,null,null,null,null,null,null,null,null,null," ()"]
[null,"",null,null,null,null,null,null,null,null,null,null,null,null,null," ()"]
[null,"",null,null,null,null,null,null,null,null,null,null,null,null,null," ()"]
[null,"",null,null,null,null,null,null,null,null,null,null,null,null,null," ()"]
[null,"",null,null,null,null,null,null,null,null,null,null,null,null,null," ()"]
[null,"",null,null,null,null,null,null,null,null,null,null,null,null,null," ()"]
[null,"",null,null,null,null,null,null,null,null,null,null,null,null,null," ()"]
[null,"",null,null,null,null,null,null,null,null,null,null,null,null,null," ()"]
[null,"",null,null,null,null,null,null,null,null,null,null,null,null,null," ()"]
[null,"",null,null,null,null,null,null,null,null,null,null,null,null,null," ()"]
[null,"",null,null,null,null,null,null,null,null,null,null,null,null,null," ()"]
[null,"",null,null,null,null,null,null,null,null,null,null,null,null,null," ()"]
[null,"",null,null,null,null,null,null,null,null,null,null,null,null,null," ()"]
[null,"",null,null,null,null,null,null,null,null,null,null,null,null,null," ()"]
[null,"",null,null,null,null,null,null,null,null,null,null,null,null,null," ()"]
[null,"",null,null,null,null,null,null,null,null,null,null,null,null,null," ()"]
[null,"",null,null,null,null,null,null,null,null,null,null,null,null,null," ()"]
[null,"",null,null,null,null,null,null,null,null,null,null,null,null,null," ()"]
[null,"",null,null,null,null,null,null,null,null,null,null,null,null,null," ()"]
[null,"",null,null,null,null,null,null,null,null,null,null,null,null,null," ()"]
[null,"",null,null,null,null,null,null,null,null,null,null,null,null,null," ()"]
[null,"",null,null,null,null,null,null,null,null,null,null,null,null,null," ()"]
[null,"",null,null,null,null,null,null,null,null,null,null,null,null,null," ()"]
[null,"",null,null,null,null,null,null,null,null,null,null,null,null,null," ()"]
[null,"",null,null,null,null,null,null,null,null,null,null,null,null,null," ()"]
[null,"",null,null,null,null,null,null,null,null,null,null,null,null,null," ()"]
[null,"",null,null,null,null,null,null,null,null,null,null,null,null,null," ()"]
[null,"",null,null,null,null,null,null,null,null,null,null,null,null,null," ()"]
[null,"",null,null,null,null,null,null,null,null,null,null,null,null,null," ()"]
[null,"",null,null,null,null,null,null,null,null,null,null,null,null,null," ()"]
[null,"",null,null,null,null,null,null,null,null,null,null,null,null,null," ()"]
[null,"",null,null,null,null,null,null,null,null,null,null,null,null,null," ()"]
[null,"",null,null,null,null,null,null,null,null,null,null,null,null,null," ()"]
[null,{"$f":"CONCATENATE(A486)","v":""},null,null,null,null,null,null,null,null,null,null,null,null,null," ()"]
[null,"",null,null,null,null,null,null,null,null,null,null,null,null,null," ()"]
[null,"",null,null,null,null,null,null,null,null,null,null,null,null,null," ()"]
[null,"",null,null,null,null,null,null,null,null,null,null,null,null,null," ()"]
[null,"",null,null,null,null,null,null,null,null,null,null,null,null,null," ()"]
[null,"",null,null,null,null,null,null,null,null,null,null,null,null,null," ()"]
[null,"",null,null,null,null,null,null,null,null,null,null,null,null,null," ()"]
[null,"",null,null,null,null,null,null,null,null,null,null,null,null,null," ()"]
[null,"",null,null,null,null,null,null,null,null,null,null,null,null,null," ()"]
[null,"",null,null,null,null,null,null,null,null,null,null,null,null,null," ()"]
[null,"",null,null,null,null,null,null,null,null,null,null,null,null,null," ()"]
[null,"",null,null,null,null,null,null,null,null,null,null,null,null,null," ()"]
[null,"",null,null,null,null,null,null,null,null,null,null,null,null,null," ()"]
[null,"",null,null,null,null,null,null,null,null,null,null,null,null,null," ()"]
[null,"",null,null,null,null,null,null,null,null,null,null,null,null,null," ()"]
[null,"",null,null,null,null,null,null,null,null,null,null,null,null,null," ()"]
[null,"",null,null,null,null,null,null,null,null,null,null,null,null,null," ()"]
[null,"",null,null,null,null,null,null,null,null,null,null,null,null,null," ()"]
[null,"",null,null,null,null,null,null,null,null,null,null,null,null,null," ()"]
[null,"",null,null,null,null,null,null,null,null,null,null,null,null,null," ()"]
[null,"",null,null,null,null,null,null,null,null,null,null,null,null,null," ()"]
[null,"",null,null,null,null,null,null,null,null,null,null,null,null,null," ()"]
[null,"",null,null,null,null,null,null,null,null,null,null,null,null,null," ()"]
[null,"",null,null,null,null,null,null,null,null,null,null,null,null,null," ()"]
[null,"",null,null,null,null,null,null,null,null,null,null,null,null,null," ()"]
[null,"",null,null,null,null,null,null,null,null,null,null,null,null,null," ()"]
[null,"",null,null,null,null,null,null,null,null,null,null,null,null,null," ()"]
[null,"",null,null,null,null,null,null,null,null,null,null,null,null,null," ()"]
[null,"",null,null,null,null,null,null,null,null,null,null,null,null,null," ()"]
[null,"",null,null,null,null,null,null,null,null,null,null,null,null,null,{"$f":"CONCATENATE(M515,\" (\",L515,\")\")","v":" ()"}]
[null,"",null,null,null,null,null,null,null,null,null,null,null,null,null," ()"]
[null,"",null,null,null,null,null,null,null,null,null,null,null,null,null," ()"]
[null,"",null,null,null,null,null,null,null,null,null,null,null,null,null," ()"]
[null,"",null,null,null,null,null,null,null,null,null,null,null,null,null," ()"]
[null,"",null,null,null,null,null,null,null,null,null,null,null,null,null," ()"]
[null,"",null,null,null,null,null,null,null,null,null,null,null,null,null," ()"]
[null,"",null,null,null,null,null,null,null,null,null,null,null,null,null," ()"]
[null,"",null,null,null,null,null,null,null,null,null,null,null,null,null," ()"]
[null,"",null,null,null,null,null,null,null,null,null,null,null,null,null," ()"]
[null,"",null,null,null,null,null,null,null,null,null,null,null,null,null," ()"]
[null,"",null,null,null,null,null,null,null,null,null,null,null,null,null," ()"]
[null,"",null,null,null,null,null,null,null,null,null,null,null,null,null," ()"]
[null,"",null,null,null,null,null,null,null,null,null,null,null,null,null," ()"]
[null,"",null,null,null,null,null,null,null,null,null,null,null,null,null," ()"]
[null,"",null,null,null,null,null,null,null,null,null,null,null,null,null," ()"]
[null,"",null,null,null,null,null,null,null,null,null,null,null,null,null," ()"]
[null,"",null,null,null,null,null,null,null,null,null,null,null,null,null," ()"]
[null,"",null,null,null,null,null,null,null,null,null,null,null,null,null," ()"]
[null,"",null,null,null,null,null,null,null,null,null,null,null,null,null," ()"]
[null,"",null,null,null,null,null,null,null,null,null,null,null,null,null," ()"]
[null,"",null,null,null,null,null,null,null,null,null,null,null,null,null," ()"]
[null,"",null,null,null,null,null,null,null,null,null,null,null,null,null," ()"]
[null,"",null,null,null,null,null,null,null,null,null,null,null,null,null," ()"]
[null,"",null,null,null,null,null,null,null,null,null,null,null,null,null," ()"]
[null,"",null,null,null,null,null,null,null,null,null,null,null,null,null," ()"]
[null,"",null,null,null,null,null,null,null,null,null,null,null,null,null," ()"]
[null,"",null,null,null,null,null,null,null,null,null,null,null,null,null," ()"]
[null,"",null,null,null,null,null,null,null,null,null,null,null,null,null," ()"]
[null,"",null,null,null,null,null,null,null,null,null,null,null,null,null," ()"]
[null,"",null,null,null,null,null,null,null,null,null,null,null,null,null," ()"]
[null,"",null,null,null,null,null,null,null,null,null,null,null,null,null," ()"]
[null,"",null,null,null,null,null,null,null,null,null,null,null,null,null," ()"]
[null,"",null,null,null,null,null,null,null,null,null,null,null,null,null," ()"]
[null,"",null,null,null,null,null,null,null,null,null,null,null,null,null," ()"]
[null,{"$f":"CONCATENATE(A550)","v":""},null,null,null,null,null,null,null,null,null,null,null,null,null," ()"]
[null,"",null,null,null,null,null,null,null,null,null,null,null,null,null," ()"]
[null,"",null,null,null,null,null,null,null,null,null,null,null,null,null," ()"]
[null,"",null,null,null,null,null,null,null,null,null,null,null,null,null," ()"]
[null,"",null,null,null,null,null,null,null,null,null,null,null,null,null," ()"]
[null,"",null,null,null,null,null,null,null,null,null,null,null,null,null," ()"]
[null,"",null,null,null,null,null,null,null,null,null,null,null,null,null," ()"]
[null,"",null,null,null,null,null,null,null,null,null,null,null,null,null," ()"]
[null,"",null,null,null,null,null,null,null,null,null,null,null,null,null," ()"]
[null,"",null,null,null,null,null,null,null,null,null,null,null,null,null," ()"]
[null,"",null,null,null,null,null,null,null,null,null,null,null,null,null," ()"]
[null,"",null,null,null,null,null,null,null,null,null,null,null,null,null," ()"]
[null,"",null,null,null,null,null,null,null,null,null,null,null,null,null," ()"]
[null,"",null,null,null,null,null,null,null,null,null,null,null,null,null," ()"]
[null,"",null,null,null,null,null,null,null,null,null,null,null,null,null," ()"]
[null,"",null,null,null,null,null,null,null,null,null,null,null,null,null," ()"]
[null,"",null,null,null,null,null,null,null,null,null,null,null,null,null," ()"]
[null,"",null,null,null,null,null,null,null,null,null,null,null,null,null," ()"]
[null,"",null,null,null,null,null,null,null,null,null,null,null,null,null," ()"]
[null,"",null,null,null,null,null,null,null,null,null,null,null,null,null," ()"]
[null,"",null,null,null,null,null,null,null,null,null,null,null,null,null," ()"]
[null,"",null,null,null,null,null,null,null,null,null,null,null,null,null," ()"]
[null,"",null,null,null,null,null,null,null,null,null,null,null,null,null," ()"]
[null,"",null,null,null,null,null,null,null,null,null,null,null,null,null," ()"]
[null,"",null,null,null,null,null,null,null,null,null,null,null,null,null," ()"]
[null,"",null,null,null,null,null,null,null,null,null,null,null,null,null," ()"]
[null,"",null,null,null,null,null,null,null,null,null,null,null,null,null," ()"]
[null,"",null,null,null,null,null,null,null,null,null,null,null,null,null," ()"]
[null,"",null,null,null,null,null,null,null,null,null,null,null,null,null," ()"]
[null,"",null,null,null,null,null,null,null,null,null,null,null,null,null,{"$f":"CONCATENATE(M579,\" (\",L579,\")\")","v":" ()"}]
[null,"",null,null,null,null,null,null,null,null,null,null,null,null,null," ()"]
[null,"",null,null,null,null,null,null,null,null,null,null,null,null,null," ()"]
[null,"",null,null,null,null,null,null,null,null,null,null,null,null,null," ()"]
[null,"",null,null,null,null,null,null,null,null,null,null,null,null,null," ()"]
[null,"",null,null,null,null,null,null,null,null,null,null,null,null,null," ()"]
[null,"",null,null,null,null,null,null,null,null,null,null,null,null,null," ()"]
[null,"",null,null,null,null,null,null,null,null,null,null,null,null,null," ()"]
[null,"",null,null,null,null,null,null,null,null,null,null,null,null,null," ()"]
[null,"",null,null,null,null,null,null,null,null,null,null,null,null,null," ()"]
[null,"",null,null,null,null,null,null,null,null,null,null,null,null,null," ()"]
[null,"",null,null,null,null,null,null,null,null,null,null,null,null,null," ()"]
[null,"",null,null,null,null,null,null,null,null,null,null,null,null,null," ()"]
[null,"",null,null,null,null,null,null,null,null,null,null,null,null,null," ()"]
[null,"",null,null,null,null,null,null,null,null,null,null,null,null,null," ()"]
[null,"",null,null,null,null,null,null,null,null,null,null,null,null,null," ()"]
[null,"",null,null,null,null,null,null,null,null,null,null,null,null,null," ()"]
[null,"",null,null,null,null,null,null,null,null,null,null,null,null,null," ()"]
[null,"",null,null,null,null,null,null,null,null,null,null,null,null,null," ()"]
[null,"",null,null,null,null,null,null,null,null,null,null,null,null,null," ()"]
[null,"",null,null,null,null,null,null,null,null,null,null,null,null,null," ()"]
[null,"",null,null,null,null,null,null,null,null,null,null,null,null,null," ()"]
[null,"",null,null,null,null,null,null,null,null,null,null,null,null,null," ()"]
[null,"",null,null,null,null,null,null,null,null,null,null,null,null,null," ()"]
[null,"",null,null,null,null,null,null,null,null,null,null,null,null,null," ()"]
[null,"",null,null,null,null,null,null,null,null,null,null,null,null,null," ()"]
[null,"",null,null,null,null,null,null,null,null,null,null,null,null,null," ()"]
[null,"",null,null,null,null,null,null,null,null,null,null,null,null,null," ()"]
[null,"",null,null,null,null,null,null,null,null,null,null,null,null,null," ()"]
[null,"",null,null,null,null,null,null,null,null,null,null,null,null,null," ()"]
[null,"",null,null,null,null,null,null,null,null,null,null,null,null,null," ()"]
[null,"",null,null,null,null,null,null,null,null,null,null,null,null,null," ()"]
[null,"",null,null,null,null,null,null,null,null,null,null,null,null,null," ()"]
[null,"",null,null,null,null,null,null,null,null,null,null,null,null,null," ()"]
[null,"",null,null,null,null,null,null,null,null,null,null,null,null,null," ()"]
[null,{"$f":"CONCATENATE(A614)","v":""},null,null,null,null,null,null,null,null,null,null,null,null,null," ()"]
[null,"",null,null,null,null,null,null,null,null,null,null,null,null,null," ()"]
[null,"",null,null,null,null,null,null,null,null,null,null,null,null,null," ()"]
[null,"",null,null,null,null,null,null,null,null,null,null,null,null,null," ()"]
[null,"",null,null,null,null,null,null,null,null,null,null,null,null,null," ()"]
[null,"",null,null,null,null,null,null,null,null,null,null,null,null,null," ()"]
[null,"",null,null,null,null,null,null,null,null,null,null,null,null,null," ()"]
[null,"",null,null,null,null,null,null,null,null,null,null,null,null,null," ()"]
[null,"",null,null,null,null,null,null,null,null,null,null,null,null,null," ()"]
[null,"",null,null,null,null,null,null,null,null,null,null,null,null,null," ()"]
[null,"",null,null,null,null,null,null,null,null,null,null,null,null,null," ()"]
[null,"",null,null,null,null,null,null,null,null,null,null,null,null,null," ()"]
[null,"",null,null,null,null,null,null,null,null,null,null,null,null,null," ()"]
[null,"",null,null,null,null,null,null,null,null,null,null,null,null,null," ()"]
[null,"",null,null,null,null,null,null,null,null,null,null,null,null,null," ()"]
[null,"",null,null,null,null,null,null,null,null,null,null,null,null,null," ()"]
[null,"",null,null,null,null,null,null,null,null,null,null,null,null,null," ()"]
[null,"",null,null,null,null,null,null,null,null,null,null,null,null,null," ()"]
[null,"",null,null,null,null,null,null,null,null,null,null,null,null,null," ()"]
[null,"",null,null,null,null,null,null,null,null,null,null,null,null,null," ()"]
[null,"",null,null,null,null,null,null,null,null,null,null,null,null,null," ()"]
[null,"",null,null,null,null,null,null,null,null,null,null,null,null,null," ()"]
[null,"",null,null,null,null,null,null,null,null,null,null,null,null,null," ()"]
[null,"",null,null,null,null,null,null,null,null,null,null,null,null,null," ()"]
[null,"",null,null,null,null,null,null,null,null,null,null,null,null,null," ()"]
[null,"",null,null,null,null,null,null,null,null,null,null,null,null,null," ()"]
[null,"",null,null,null,null,null,null,null,null,null,null,null,null,null," ()"]
[null,"",null,null,null,null,null,null,null,null,null,null,null,null,null," ()"]
[null,"",null,null,null,null,null,null,null,null,null,null,null,null,null," ()"]
[null,"",null,null,null,null,null,null,null,null,null,null,null,null,null,{"$f":"CONCATENATE(M643,\" (\",L643,\")\")","v":" ()"}]
[null,"",null,null,null,null,null,null,null,null,null,null,null,null,null," ()"]
[null,"",null,null,null,null,null,null,null,null,null,null,null,null,null," ()"]
[null,"",null,null,null,null,null,null,null,null,null,null,null,null,null," ()"]
[null,"",null,null,null,null,null,null,null,null,null,null,null,null,null," ()"]
[null,"",null,null,null,null,null,null,null,null,null,null,null,null,null," ()"]
[null,"",null,null,null,null,null,null,null,null,null,null,null,null,null," ()"]
[null,"",null,null,null,null,null,null,null,null,null,null,null,null,null," ()"]
[null,"",null,null,null,null,null,null,null,null,null,null,null,null,null," ()"]
[null,"",null,null,null,null,null,null,null,null,null,null,null,null,null," ()"]
[null,"",null,null,null,null,null,null,null,null,null,null,null,null,null," ()"]
[null,"",null,null,null,null,null,null,null,null,null,null,null,null,null," ()"]
[null,"",null,null,null,null,null,null,null,null,null,null,null,null,null," ()"]
[null,"",null,null,null,null,null,null,null,null,null,null,null,null,null," ()"]
[null,"",null,null,null,null,null,null,null,null,null,null,null,null,null," ()"]
[null,"",null,null,null,null,null,null,null,null,null,null,null,null,null," ()"]
[null,"",null,null,null,null,null,null,null,null,null,null,null,null,null," ()"]
[null,"",null,null,null,null,null,null,null,null,null,null,null,null,null," ()"]
[null,"",null,null,null,null,null,null,null,null,null,null,null,null,null," ()"]
[null,"",null,null,null,null,null,null,null,null,null,null,null,null,null," ()"]
[null,"",null,null,null,null,null,null,null,null,null,null,null,null,null," ()"]
[null,"",null,null,null,null,null,null,null,null,null,null,null,null,null," ()"]
[null,"",null,null,null,null,null,null,null,null,null,null,null,null,null," ()"]
[null,"",null,null,null,null,null,null,null,null,null,null,null,null,null," ()"]
[null,"",null,null,null,null,null,null,null,null,null,null,null,null,null," ()"]
[null,"",null,null,null,null,null,null,null,null,null,null,null,null,null," ()"]
[null,"",null,null,null,null,null,null,null,null,null,null,null,null,null," ()"]
[null,"",null,null,null,null,null,null,null,null,null,null,null,null,null," ()"]
[null,"",null,null,null,null,null,null,null,null,null,null,null,null,null," ()"]
[null,"",null,null,null,null,null,null,null,null,null,null,null,null,null," ()"]
[null,"",null,null,null,null,null,null,null,null,null,null,null,null,null," ()"]
[null,"",null,null,null,null,null,null,null,null,null,null,null,null,null," ()"]
[null,"",null,null,null,null,null,null,null,null,null,null,null,null,null," ()"]
[null,"",null,null,null,null,null,null,null,null,null,null,null,null,null," ()"]
[null,"",null,null,null,null,null,null,null,null,null,null,null,null,null," ()"]
[null,{"$f":"CONCATENATE(A678)","v":""},null,null,null,null,null,null,null,null,null,null,null,null,null," ()"]
[null,"",null,null,null,null,null,null,null,null,null,null,null,null,null," ()"]
[null,"",null,null,null,null,null,null,null,null,null,null,null,null,null," ()"]
[null,"",null,null,null,null,null,null,null,null,null,null,null,null,null," ()"]
[null,"",null,null,null,null,null,null,null,null,null,null,null,null,null," ()"]
[null,"",null,null,null,null,null,null,null,null,null,null,null,null,null," ()"]
[null,"",null,null,null,null,null,null,null,null,null,null,null,null,null," ()"]
[null,"",null,null,null,null,null,null,null,null,null,null,null,null,null," ()"]
[null,"",null,null,null,null,null,null,null,null,null,null,null,null,null," ()"]
[null,"",null,null,null,null,null,null,null,null,null,null,null,null,null," ()"]
[null,"",null,null,null,null,null,null,null,null,null,null,null,null,null," ()"]
[null,"",null,null,null,null,null,null,null,null,null,null,null,null,null," ()"]
[null,"",null,null,null,null,null,null,null,null,null,null,null,null,null," ()"]
[null,"",null,null,null,null,null,null,null,null,null,null,null,null,null," ()"]
[null,"",null,null,null,null,null,null,null,null,null,null,null,null,null," ()"]
[null,"",null,null,null,null,null,null,null,null,null,null,null,null,null," ()"]
[null,"",null,null,null,null,null,null,null,null,null,null,null,null,null," ()"]
[null,"",null,null,null,null,null,null,null,null,null,null,null,null,null," ()"]
[null,"",null,null,null,null,null,null,null,null,null,null,null,null,null," ()"]
[null,"",null,null,null,null,null,null,null,null,null,null,null,null,null," ()"]
[null,"",null,null,null,null,null,null,null,null,null,null,null,null,null," ()"]
[null,"",null,null,null,null,null,null,null,null,null,null,null,null,null," ()"]
[null,"",null,null,null,null,null,null,null,null,null,null,null,null,null," ()"]
[null,"",null,null,null,null,null,null,null,null,null,null,null,null,null," ()"]
[null,"",null,null,null,null,null,null,null,null,null,null,null,null,null," ()"]
[null,"",null,null,null,null,null,null,null,null,null,null,null,null,null," ()"]
[null,"",null,null,null,null,null,null,null,null,null,null,null,null,null," ()"]
[null,"",null,null,null,null,null,null,null,null,null,null,null,null,null," ()"]
[null,"",null,null,null,null,null,null,null,null,null,null,null,null,null," ()"]
[null,"",null,null,null,null,null,null,null,null,null,null,null,null,null,{"$f":"CONCATENATE(M707,\" (\",L707,\")\")","v":" ()"}]
[null,"",null,null,null,null,null,null,null,null,null,null,null,null,null," ()"]
[null,"",null,null,null,null,null,null,null,null,null,null,null,null,null," ()"]
[null,"",null,null,null,null,null,null,null,null,null,null,null,null,null," ()"]
[null,"",null,null,null,null,null,null,null,null,null,null,null,null,null," ()"]
[null,"",null,null,null,null,null,null,null,null,null,null,null,null,null," ()"]
[null,"",null,null,null,null,null,null,null,null,null,null,null,null,null," ()"]
[null,"",null,null,null,null,null,null,null,null,null,null,null,null,null," ()"]
[null,"",null,null,null,null,null,null,null,null,null,null,null,null,null," ()"]
[null,"",null,null,null,null,null,null,null,null,null,null,null,null,null," ()"]
[null,"",null,null,null,null,null,null,null,null,null,null,null,null,null," ()"]
[null,"",null,null,null,null,null,null,null,null,null,null,null,null,null," ()"]
[null,"",null,null,null,null,null,null,null,null,null,null,null,null,null," ()"]
[null,"",null,null,null,null,null,null,null,null,null,null,null,null,null," ()"]
[null,"",null,null,null,null,null,null,null,null,null,null,null,null,null," ()"]
[null,"",null,null,null,null,null,null,null,null,null,null,null,null,null," ()"]
[null,"",null,null,null,null,null,null,null,null,null,null,null,null,null," ()"]
[null,"",null,null,null,null,null,null,null,null,null,null,null,null,null," ()"]
[null,"",null,null,null,null,null,null,null,null,null,null,null,null,null," ()"]
[null,"",null,null,null,null,null,null,null,null,null,null,null,null,null," ()"]
[null,"",null,null,null,null,null,null,null,null,null,null,null,null,null," ()"]
[null,"",null,null,null,null,null,null,null,null,null,null,null,null,null," ()"]
[null,"",null,null,null,null,null,null,null,null,null,null,null,null,null," ()"]
[null,"",null,null,null,null,null,null,null,null,null,null,null,null,null," ()"]
[null,"",null,null,null,null,null,null,null,null,null,null,null,null,null," ()"]
[null,"",null,null,null,null,null,null,null,null,null,null,null,null,null," ()"]
[null,"",null,null,null,null,null,null,null,null,null,null,null,null,null," ()"]
[null,"",null,null,null,null,null,null,null,null,null,null,null,null,null," ()"]
[null,"",null,null,null,null,null,null,null,null,null,null,null,null,null," ()"]
[null,"",null,null,null,null,null,null,null,null,null,null,null,null,null," ()"]
[null,"",null,null,null,null,null,null,null,null,null,null,null,null,null," ()"]
[null,"",null,null,null,null,null,null,null,null,null,null,null,null,null," ()"]
[null,"",null,null,null,null,null,null,null,null,null,null,null,null,null," ()"]
[null,"",null,null,null,null,null,null,null,null,null,null,null,null,null," ()"]
[null,"",null,null,null,null,null,null,null,null,null,null,null,null,null," ()"]
[null,{"$f":"CONCATENATE(A742)","v":""},null,null,null,null,null,null,null,null,null,null,null,null,null," ()"]
[null,"",null,null,null,null,null,null,null,null,null,null,null,null,null," ()"]
[null,"",null,null,null,null,null,null,null,null,null,null,null,null,null," ()"]
[null,"",null,null,null,null,null,null,null,null,null,null,null,null,null," ()"]
[null,"",null,null,null,null,null,null,null,null,null,null,null,null,null," ()"]
[null,"",null,null,null,null,null,null,null,null,null,null,null,null,null," ()"]
[null,"",null,null,null,null,null,null,null,null,null,null,null,null,null," ()"]
[null,"",null,null,null,null,null,null,null,null,null,null,null,null,null," ()"]
[null,"",null,null,null,null,null,null,null,null,null,null,null,null,null," ()"]
[null,"",null,null,null,null,null,null,null,null,null,null,null,null,null," ()"]
[null,"",null,null,null,null,null,null,null,null,null,null,null,null,null," ()"]
[null,"",null,null,null,null,null,null,null,null,null,null,null,null,null," ()"]
[null,"",null,null,null,null,null,null,null,null,null,null,null,null,null," ()"]
[null,"",null,null,null,null,null,null,null,null,null,null,null,null,null," ()"]
[null,"",null,null,null,null,null,null,null,null,null,null,null,null,null," ()"]
[null,"",null,null,null,null,null,null,null,null,null,null,null,null,null," ()"]
[null,"",null,null,null,null,null,null,null,null,null,null,null,null,null," ()"]
[null,"",null,null,null,null,null,null,null,null,null,null,null,null,null," ()"]
[null,"",null,null,null,null,null,null,null,null,null,null,null,null,null," ()"]
[null,"",null,null,null,null,null,null,null,null,null,null,null,null,null," ()"]
[null,"",null,null,null,null,null,null,null,null,null,null,null,null,null," ()"]
[null,"",null,null,null,null,null,null,null,null,null,null,null,null,null," ()"]
[null,"",null,null,null,null,null,null,null,null,null,null,null,null,null," ()"]
[null,"",null,null,null,null,null,null,null,null,null,null,null,null,null," ()"]
[null,"",null,null,null,null,null,null,null,null,null,null,null,null,null," ()"]
[null,"",null,null,null,null,null,null,null,null,null,null,null,null,null," ()"]
[null,"",null,null,null,null,null,null,null,null,null,null,null,null,null," ()"]
[null,"",null,null,null,null,null,null,null,null,null,null,null,null,null," ()"]
[null,"",null,null,null,null,null,null,null,null,null,null,null,null,null," ()"]
[null,"",null,null,null,null,null,null,null,null,null,null,null,null,null,{"$f":"CONCATENATE(M771,\" (\",L771,\")\")","v":" ()"}]
[null,"",null,null,null,null,null,null,null,null,null,null,null,null,null," ()"]
[null,"",null,null,null,null,null,null,null,null,null,null,null,null,null," ()"]
[null,"",null,null,null,null,null,null,null,null,null,null,null,null,null," ()"]
[null,"",null,null,null,null,null,null,null,null,null,null,null,null,null," ()"]
[null,"",null,null,null,null,null,null,null,null,null,null,null,null,null," ()"]
[null,"",null,null,null,null,null,null,null,null,null,null,null,null,null," ()"]
[null,"",null,null,null,null,null,null,null,null,null,null,null,null,null," ()"]
[null,"",null,null,null,null,null,null,null,null,null,null,null,null,null," ()"]
[null,"",null,null,null,null,null,null,null,null,null,null,null,null,null," ()"]
[null,"",null,null,null,null,null,null,null,null,null,null,null,null,null," ()"]
[null,"",null,null,null,null,null,null,null,null,null,null,null,null,null," ()"]
[null,"",null,null,null,null,null,null,null,null,null,null,null,null,null," ()"]
[null,"",null,null,null,null,null,null,null,null,null,null,null,null,null," ()"]
[null,"",null,null,null,null,null,null,null,null,null,null,null,null,null," ()"]
[null,"",null,null,null,null,null,null,null,null,null,null,null,null,null," ()"]
[null,"",null,null,null,null,null,null,null,null,null,null,null,null,null," ()"]
[null,"",null,null,null,null,null,null,null,null,null,null,null,null,null," ()"]
[null,"",null,null,null,null,null,null,null,null,null,null,null,null,null," ()"]
[null,"",null,null,null,null,null,null,null,null,null,null,null,null,null," ()"]
[null,"",null,null,null,null,null,null,null,null,null,null,null,null,null," ()"]
[null,"",null,null,null,null,null,null,null,null,null,null,null,null,null," ()"]
[null,"",null,null,null,null,null,null,null,null,null,null,null,null,null," ()"]
[null,"",null,null,null,null,null,null,null,null,null,null,null,null,null," ()"]
[null,"",null,null,null,null,null,null,null,null,null,null,null,null,null," ()"]
[null,"",null,null,null,null,null,null,null,null,null,null,null,null,null," ()"]
[null,"",null,null,null,null,null,null,null,null,null,null,null,null,null," ()"]
[null,"",null,null,null,null,null,null,null,null,null,null,null,null,null," ()"]
[null,"",null,null,null,null,null,null,null,null,null,null,null,null,null," ()"]
[null,"",null,null,null,null,null,null,null,null,null,null,null,null,null," ()"]
[null,"",null,null,null,null,null,null,null,null,null,null,null,null,null," ()"]
[null,"",null,null,null,null,null,null,null,null,null,null,null,null,null," ()"]
[null,"",null,null,null,null,null,null,null,null,null,null,null,null,null," ()"]
[null,"",null,null,null,null,null,null,null,null,null,null,null,null,null," ()"]
[null,"",null,null,null,null,null,null,null,null,null,null,null,null,null," ()"]
[null,{"$f":"CONCATENATE(A806)","v":""},null,null,null,null,null,null,null,null,null,null,null,null,null," ()"]
[null,"",null,null,null,null,null,null,null,null,null,null,null,null,null," ()"]
[null,"",null,null,null,null,null,null,null,null,null,null,null,null,null," ()"]
[null,"",null,null,null,null,null,null,null,null,null,null,null,null,null," ()"]
[null,"",null,null,null,null,null,null,null,null,null,null,null,null,null," ()"]
[null,"",null,null,null,null,null,null,null,null,null,null,null,null,null," ()"]
[null,"",null,null,null,null,null,null,null,null,null,null,null,null,null," ()"]
[null,"",null,null,null,null,null,null,null,null,null,null,null,null,null," ()"]
[null,"",null,null,null,null,null,null,null,null,null,null,null,null,null," ()"]
[null,"",null,null,null,null,null,null,null,null,null,null,null,null,null," ()"]
[null,"",null,null,null,null,null,null,null,null,null,null,null,null,null," ()"]
[null,"",null,null,null,null,null,null,null,null,null,null,null,null,null," ()"]
[null,"",null,null,null,null,null,null,null,null,null,null,null,null,null," ()"]
[null,"",null,null,null,null,null,null,null,null,null,null,null,null,null," ()"]
[null,"",null,null,null,null,null,null,null,null,null,null,null,null,null," ()"]
[null,"",null,null,null,null,null,null,null,null,null,null,null,null,null," ()"]
[null,"",null,null,null,null,null,null,null,null,null,null,null,null,null," ()"]
[null,"",null,null,null,null,null,null,null,null,null,null,null,null,null," ()"]
[null,"",null,null,null,null,null,null,null,null,null,null,null,null,null," ()"]
[null,"",null,null,null,null,null,null,null,null,null,null,null,null,null," ()"]
[null,"",null,null,null,null,null,null,null,null,null,null,null,null,null," ()"]
[null,"",null,null,null,null,null,null,null,null,null,null,null,null,null," ()"]
[null,"",null,null,null,null,null,null,null,null,null,null,null,null,null," ()"]
[null,"",null,null,null,null,null,null,null,null,null,null,null,null,null," ()"]
[null,"",null,null,null,null,null,null,null,null,null,null,null,null,null," ()"]
[null,"",null,null,null,null,null,null,null,null,null,null,null,null,null," ()"]
[null,"",null,null,null,null,null,null,null,null,null,null,null,null,null," ()"]
[null,"",null,null,null,null,null,null,null,null,null,null,null,null,null," ()"]
[null,"",null,null,null,null,null,null,null,null,null,null,null,null,null," ()"]
[null,"",null,null,null,null,null,null,null,null,null,null,null,null,null,{"$f":"CONCATENATE(M835,\" (\",L835,\")\")","v":" ()"}]
[null,"",null,null,null,null,null,null,null,null,null,null,null,null,null," ()"]
[null,"",null,null,null,null,null,null,null,null,null,null,null,null,null," ()"]
[null,"",null,null,null,null,null,null,null,null,null,null,null,null,null," ()"]
[null,"",null,null,null,null,null,null,null,null,null,null,null,null,null," ()"]
[null,"",null,null,null,null,null,null,null,null,null,null,null,null,null," ()"]
[null,"",null,null,null,null,null,null,null,null,null,null,null,null,null," ()"]
[null,"",null,null,null,null,null,null,null,null,null,null,null,null,null," ()"]
[null,"",null,null,null,null,null,null,null,null,null,null,null,null,null," ()"]
[null,"",null,null,null,null,null,null,null,null,null,null,null,null,null," ()"]
[null,"",null,null,null,null,null,null,null,null,null,null,null,null,null," ()"]
[null,"",null,null,null,null,null,null,null,null,null,null,null,null,null," ()"]
[null,"",null,null,null,null,null,null,null,null,null,null,null,null,null," ()"]
[null,"",null,null,null,null,null,null,null,null,null,null,null,null,null," ()"]
[null,"",null,null,null,null,null,null,null,null,null,null,null,null,null," ()"]
[null,"",null,null,null,null,null,null,null,null,null,null,null,null,null," ()"]
[null,"",null,null,null,null,null,null,null,null,null,null,null,null,null," ()"]
[null,"",null,null,null,null,null,null,null,null,null,null,null,null,null," ()"]
[null,"",null,null,null,null,null,null,null,null,null,null,null,null,null," ()"]
[null,"",null,null,null,null,null,null,null,null,null,null,null,null,null," ()"]
[null,"",null,null,null,null,null,null,null,null,null,null,null,null,null," ()"]
[null,"",null,null,null,null,null,null,null,null,null,null,null,null,null," ()"]
[null,"",null,null,null,null,null,null,null,null,null,null,null,null,null," ()"]
[null,"",null,null,null,null,null,null,null,null,null,null,null,null,null," ()"]
[null,"",null,null,null,null,null,null,null,null,null,null,null,null,null," ()"]
[null,"",null,null,null,null,null,null,null,null,null,null,null,null,null," ()"]
[null,"",null,null,null,null,null,null,null,null,null,null,null,null,null," ()"]
[null,"",null,null,null,null,null,null,null,null,null,null,null,null,null," ()"]
[null,"",null,null,null,null,null,null,null,null,null,null,null,null,null," ()"]
[null,"",null,null,null,null,null,null,null,null,null,null,null,null,null," ()"]
[null,"",null,null,null,null,null,null,null,null,null,null,null,null,null," ()"]
[null,"",null,null,null,null,null,null,null,null,null,null,null,null,null," ()"]
[null,"",null,null,null,null,null,null,null,null,null,null,null,null,null," ()"]
[null,"",null,null,null,null,null,null,null,null,null,null,null,null,null," ()"]
[null,"",null,null,null,null,null,null,null,null,null,null,null,null,null," ()"]
[null,{"$f":"CONCATENATE(A870)","v":""},null,null,null,null,null,null,null,null,null,null,null,null,null," ()"]
[null,"",null,null,null,null,null,null,null,null,null,null,null,null,null," ()"]
[null,"",null,null,null,null,null,null,null,null,null,null,null,null,null," ()"]
[null,"",null,null,null,null,null,null,null,null,null,null,null,null,null," ()"]
[null,"",null,null,null,null,null,null,null,null,null,null,null,null,null," ()"]
[null,"",null,null,null,null,null,null,null,null,null,null,null,null,null," ()"]
[null,"",null,null,null,null,null,null,null,null,null,null,null,null,null," ()"]
[null,"",null,null,null,null,null,null,null,null,null,null,null,null,null," ()"]
[null,"",null,null,null,null,null,null,null,null,null,null,null,null,null," ()"]
[null,"",null,null,null,null,null,null,null,null,null,null,null,null,null," ()"]
[null,"",null,null,null,null,null,null,null,null,null,null,null,null,null," ()"]
[null,"",null,null,null,null,null,null,null,null,null,null,null,null,null," ()"]
[null,"",null,null,null,null,null,null,null,null,null,null,null,null,null," ()"]
[null,"",null,null,null,null,null,null,null,null,null,null,null,null,null," ()"]
[null,"",null,null,null,null,null,null,null,null,null,null,null,null,null," ()"]
[null,"",null,null,null,null,null,null,null,null,null,null,null,null,null," ()"]
[null,"",null,null,null,null,null,null,null,null,null,null,null,null,null," ()"]
[null,"",null,null,null,null,null,null,null,null,null,null,null,null,null," ()"]
[null,"",null,null,null,null,null,null,null,null,null,null,null,null,null," ()"]
[null,"",null,null,null,null,null,null,null,null,null,null,null,null,null," ()"]
[null,"",null,null,null,null,null,null,null,null,null,null,null,null,null," ()"]
[null,"",null,null,null,null,null,null,null,null,null,null,null,null,null," ()"]
[null,"",null,null,null,null,null,null,null,null,null,null,null,null,null," ()"]
[null,"",null,null,null,null,null,null,null,null,null,null,null,null,null," ()"]
[null,"",null,null,null,null,null,null,null,null,null,null,null,null,null," ()"]
[null,"",null,null,null,null,null,null,null,null,null,null,null,null,null," ()"]
[null,"",null,null,null,null,null,null,null,null,null,null,null,null,null," ()"]
[null,"",null,null,null,null,null,null,null,null,null,null,null,null,null," ()"]
[null,"",null,null,null,null,null,null,null,null,null,null,null,null,null," ()"]
[null,"",null,null,null,null,null,null,null,null,null,null,null,null,null,{"$f":"CONCATENATE(M899,\" (\",L899,\")\")","v":" ()"}]
[null,"",null,null,null,null,null,null,null,null,null,null,null,null,null," ()"]
[null,"",null,null,null,null,null,null,null,null,null,null,null,null,null," ()"]
[null,"",null,null,null,null,null,null,null,null,null,null,null,null,null," ()"]
[null,"",null,null,null,null,null,null,null,null,null,null,null,null,null," ()"]
[null,"",null,null,null,null,null,null,null,null,null,null,null,null,null," ()"]
[null,"",null,null,null,null,null,null,null,null,null,null,null,null,null," ()"]
[null,"",null,null,null,null,null,null,null,null,null,null,null,null,null," ()"]
[null,"",null,null,null,null,null,null,null,null,null,null,null,null,null," ()"]
[null,"",null,null,null,null,null,null,null,null,null,null,null,null,null," ()"]
[null,"",null,null,null,null,null,null,null,null,null,null,null,null,null," ()"]
[null,"",null,null,null,null,null,null,null,null,null,null,null,null,null," ()"]
[null,"",null,null,null,null,null,null,null,null,null,null,null,null,null," ()"]
[null,"",null,null,null,null,null,null,null,null,null,null,null,null,null," ()"]
[null,"",null,null,null,null,null,null,null,null,null,null,null,null,null," ()"]
[null,"",null,null,null,null,null,null,null,null,null,null,null,null,null," ()"]
[null,"",null,null,null,null,null,null,null,null,null,null,null,null,null," ()"]
[null,"",null,null,null,null,null,null,null,null,null,null,null,null,null," ()"]
[null,"",null,null,null,null,null,null,null,null,null,null,null,null,null," ()"]
[null,"",null,null,null,null,null,null,null,null,null,null,null,null,null," ()"]
[null,"",null,null,null,null,null,null,null,null,null,null,null,null,null," ()"]
[null,"",null,null,null,null,null,null,null,null,null,null,null,null,null," ()"]
[null,"",null,null,null,null,null,null,null,null,null,null,null,null,null," ()"]
[null,"",null,null,null,null,null,null,null,null,null,null,null,null,null," ()"]
[null,"",null,null,null,null,null,null,null,null,null,null,null,null,null," ()"]
[null,"",null,null,null,null,null,null,null,null,null,null,null,null,null," ()"]
[null,"",null,null,null,null,null,null,null,null,null,null,null,null,null," ()"]
[null,"",null,null,null,null,null,null,null,null,null,null,null,null,null," ()"]
[null,"",null,null,null,null,null,null,null,null,null,null,null,null,null," ()"]
[null,"",null,null,null,null,null,null,null,null,null,null,null,null,null," ()"]
[null,"",null,null,null,null,null,null,null,null,null,null,null,null,null," ()"]
[null,"",null,null,null,null,null,null,null,null,null,null,null,null,null," ()"]
[null,"",null,null,null,null,null,null,null,null,null,null,null,null,null," ()"]
[null,"",null,null,null,null,null,null,null,null,null,null,null,null,null," ()"]
[null,"",null,null,null,null,null,null,null,null,null,null,null,null,null," ()"]
[null,{"$f":"CONCATENATE(A934)","v":""},null,null,null,null,null,null,null,null,null,null,null,null,null," ()"]
[null,"",null,null,null,null,null,null,null,null,null,null,null,null,null," ()"]
[null,"",null,null,null,null,null,null,null,null,null,null,null,null,null," ()"]
[null,"",null,null,null,null,null,null,null,null,null,null,null,null,null," ()"]
[null,"",null,null,null,null,null,null,null,null,null,null,null,null,null," ()"]
[null,"",null,null,null,null,null,null,null,null,null,null,null,null,null," ()"]
[null,"",null,null,null,null,null,null,null,null,null,null,null,null,null," ()"]
[null,"",null,null,null,null,null,null,null,null,null,null,null,null,null," ()"]
[null,"",null,null,null,null,null,null,null,null,null,null,null,null,null," ()"]
[null,"",null,null,null,null,null,null,null,null,null,null,null,null,null," ()"]
[null,"",null,null,null,null,null,null,null,null,null,null,null,null,null," ()"]
[null,"",null,null,null,null,null,null,null,null,null,null,null,null,null," ()"]
[null,"",null,null,null,null,null,null,null,null,null,null,null,null,null," ()"]
[null,"",null,null,null,null,null,null,null,null,null,null,null,null,null," ()"]
[null,"",null,null,null,null,null,null,null,null,null,null,null,null,null," ()"]
[null,"",null,null,null,null,null,null,null,null,null,null,null,null,null," ()"]
[null,"",null,null,null,null,null,null,null,null,null,null,null,null,null," ()"]
[null,"",null,null,null,null,null,null,null,null,null,null,null,null,null," ()"]
[null,"",null,null,null,null,null,null,null,null,null,null,null,null,null," ()"]
[null,"",null,null,null,null,null,null,null,null,null,null,null,null,null," ()"]
[null,"",null,null,null,null,null,null,null,null,null,null,null,null,null," ()"]
[null,"",null,null,null,null,null,null,null,null,null,null,null,null,null," ()"]
[null,"",null,null,null,null,null,null,null,null,null,null,null,null,null," ()"]
[null,"",null,null,null,null,null,null,null,null,null,null,null,null,null," ()"]
[null,"",null,null,null,null,null,null,null,null,null,null,null,null,null," ()"]
[null,"",null,null,null,null,null,null,null,null,null,null,null,null,null," ()"]
[null,"",null,null,null,null,null,null,null,null,null,null,null,null,null," ()"]
[null,"",null,null,null,null,null,null,null,null,null,null,null,null,null," ()"]
[null,"",null,null,null,null,null,null,null,null,null,null,null,null,null," ()"]
[null,"",null,null,null,null,null,null,null,null,null,null,null,null,null,{"$f":"CONCATENATE(M963,\" (\",L963,\")\")","v":" ()"}]
[null,"",null,null,null,null,null,null,null,null,null,null,null,null,null," ()"]
[null,"",null,null,null,null,null,null,null,null,null,null,null,null,null," ()"]
[null,"",null,null,null,null,null,null,null,null,null,null,null,null,null," ()"]
[null,"",null,null,null,null,null,null,null,null,null,null,null,null,null," ()"]
[null,"",null,null,null,null,null,null,null,null,null,null,null,null,null," ()"]
[null,"",null,null,null,null,null,null,null,null,null,null,null,null,null," ()"]
[null,"",null,null,null,null,null,null,null,null,null,null,null,null,null," ()"]
[null,"",null,null,null,null,null,null,null,null,null,null,null,null,null," ()"]
[null,"",null,null,null,null,null,null,null,null,null,null,null,null,null," ()"]
[null,"",null,null,null,null,null,null,null,null,null,null,null,null,null," ()"]
[null,"",null,null,null,null,null,null,null,null,null,null,null,null,null," ()"]
[null,"",null,null,null,null,null,null,null,null,null,null,null,null,null," ()"]
[null,"",null,null,null,null,null,null,null,null,null,null,null,null,null," ()"]
[null,"",null,null,null,null,null,null,null,null,null,null,null,null,null," ()"]
[null,"",null,null,null,null,null,null,null,null,null,null,null,null,null," ()"]
[null,"",null,null,null,null,null,null,null,null,null,null,null,null,null," ()"]
[null,"",null,null,null,null,null,null,null,null,null,null,null,null,null," ()"]
[null,"",null,null,null,null,null,null,null,null,null,null,null,null,null," ()"]
[null,"",null,null,null,null,null,null,null,null,null,null,null,null,null," ()"]
[null,"",null,null,null,null,null,null,null,null,null,null,null,null,null," ()"]
[null,"",null,null,null,null,null,null,null,null,null,null,null,null,null," ()"]
[null,"",null,null,null,null,null,null,null,null,null,null,null,null,null," ()"]
[null,"",null,null,null,null,null,null,null,null,null,null,null,null,null," ()"]
[null,"",null,null,null,null,null,null,null,null,null,null,null,null,null," ()"]
[null,"",null,null,null,null,null,null,null,null,null,null,null,null,null," ()"]
[null,"",null,null,null,null,null,null,null,null,null,null,null,null,null," ()"]
[null,"",null,null,null,null,null,null,null,null,null,null,null,null,null," ()"]
[null,"",null,null,null,null,null,null,null,null,null,null,null,null,null," ()"]
[null,"",null,null,null,null,null,null,null,null,null,null,null,null,null," ()"]
[null,"",null,null,null,null,null,null,null,null,null,null,null,null,null," ()"]
[null,"",null,null,null,null,null,null,null,null,null,null,null,null,null," ()"]
[null,"",null,null,null,null,null,null,null,null,null,null,null,null,null," ()"]
[null,"",null,null,null,null,null,null,null,null,null,null,null,null,null," ()"]
[null,"",null,null,null,null,null,null,null,null,null,null,null,null,null," ()"]
[null,{"$f":"CONCATENATE(A998)","v":""},null,null,null,null,null,null,null,null,null,null,null,null,null," ()"]
[null,"",null,null,null,null,null,null,null,null,null,null,null,null,null," ()"]
[]
[]
[]
[]
[]
[]
[]
[]
[]
[]
[]
[]
[]
[]
[]
[]
[]
[]
[]
[]
[]
[]
[]
[]
[]
[]
[]
[]
[]
[]
[]
[]
[]
[]
[]
[]
[]
[]
[]
[]
[]
[]
[]
[]
[]
[]
[]
[]
[]
[]
[]
[]
[]
[]
[]
[]
[]
[]
[]
[]
[]
[]
[]
[]
[]
[]
[]
[]
[]
[]
[]
[]
[]
[]
[]
[]
[]
[]
[]
[]
[]
[]
[]
[]
[]
[]
[]
[]
[]
[]
[]
[]
[]
[]
[]
[]
[]
[]
[]
[]
[]
[]
[]
[]
[]
[]
[]
[]
[]
[]
[]
[]
[]
[]
[]
[]
[]
[]
[]
[]
[]
[]
[]
[]
[]
[]
[]
[]
[]
[]
[]
[]
[]
[]
[]
[]
[]
[]
[]
[]
[]
[]
[]
[]
[]
[]
[]
[]
[]
[]
[]
[]
[]
[]
[]
[]
[]
[]
[]
[]
[]
[]
[]
[]
[]
[]
[]
[]
[]
[]
[]
[]
[]
[]
[]
[]
[]
[]
[]
[]
[]
[]
[]
[]
[]
[]
[]
[]
[]
[]
[]
[]
[]
[]
[]
[]
[]
[]
[]
[]
[]
[]
[]
[]
[]
[]
[]
[]
[]
[]
[]
[]
[]
[]
[]
[]
[]
[]
[]
[]
[]
[]
[]
[]
[]
[]
[]
[]
[]
[]
[]
[]
[]
[]
[]
[]
[]
[]
[]
[]
[]
[]
[]
[]
[]
[]
[]
[]
[]
[]
[]
[]
[]
[]
[]
[]
[]
[]
[]
[]
[]
[]
[]
[]
[]
[]
[]
[]
[]
[]
[]
[]
[]
[]
[]
[]
[]
[]
[]
[]
[]
[]
[]
[]
[]
[]
[]
[]
[]
[]
[]
[]
[]
[]
[]
[]
[]
[]
[]
[]
[]
[]
[]
[]
[]
[]
[]
[]
[]
[]
[]
[]
[]
[]
[]
[]
[]
[]
[]
[]
[]
[]
[]
[]
[]
[]
[]
[]
[]
[]
[]
[]
[]
[]
[]
[]
[]
[]
[]
[]
[]
[]
[]
[]
[]
[]
[]
[]
[]
[]
[]
[]
[]
[]
[]
[]
[]
[]
[]
[]
[]
[]
[]
[]
[]
[]
[]
[]
[]
[]
[]
[]
[]
[]
[]
[]
[]
[]
[]
[]
[]
[]
[]
[]
[]
[]
[]
[]
[]
[]
[]
[]
[]
[]
[]
[]
[]
[]
[]
[]
[]
[]
[]
[]
[]
[]
[]
[]
[]
[]
[]
[]
[]
[]
[]
[]
[]
[]
[]
[]
[]
[]
[]
[]
[]
[]
[]
[]
[]
[]
[]
[]
[]
[]
[]
[]
[]
[]
[]
[]
[]
[]
[]
[]
[]
[]
[]
[]
[]
[]
[]
[]
[]
[]
[]
[]
[]
[]
[]
[]
[]
[]
[]
[]
[]
[]
[]
[]
[]
[]
[]
[]
[]
[]
[]
[]
[]
[]
[]
[]
[]
[]
[]
[]
[]
[]
[]
[]
[]
[]
[]
[]
[]
[]
[]
[]
[]
[]
[]
[]
[]
[]
[]
[]
[]
[]
[]
[]
[]
[]
[]
[]
[]
[]
[]
[]
[]
[]
[]
[]
[]
[]
[]
[]
[]
[]
[]
[]
[]
[]
[]
[]
[]
[]
[]
[]
[]
[]
[]
[]
[]
[]
[]
[]
[]
[]
[]
[]
[]
[]
[]
[]
[]
[]
[]
[]
[]
[]
[]
[]
[]
[]
[]
[]
[]
[]
[]
[]
[]
[]
[]
[]
[]
[]
[]
[]
[]
[]
[]
[]
[]
[]
[]
[]
[]
[]
[]
[]
[]
[]
[]
[]
[]
[]
[]
[]
[]
[]
[]
[]
[]
[]
[]
[]
[]
[]
[]
[]
[]
[]
[]
[]
[]
[]
[]
[]
[]
[]
[]
[]
[]
[]
[]
[]
[]
[]
[]
[]
[]
[]
[]
[]
[]
[]
[]
[]
[]
[]
[]
[]
[]
[]
[]
[]
[]
[]
[]
[]
[]
[]
[]
[]
[]
[]
[]
[]
[]
[]
[]
[]
[]
[]
[]
[]
[]
[]
[]
[]
[]
[]
[]
[]
[]
[]
[]
[]
[]
[]
[]
[]
[]
[]
[]
[]
[]
[]
[]
[]
[]
[]
[]
[]
[]
[]
[]
[]
[]
[]
[]
[]
[]
[]
[]
[]
[]
[]
[]
[]
[]
[]
[]
[]
[]
[]
[]
[]
[]
[]
[]
[]
[]
[]
[]
[]
[]
[]
[]
[]
[]
[]
[]
[]
[]
[]
[]
[]
[]
[]
[]
[]
[]
[]
[]
[]
[]
[]
[]
[]
[]
[]
[]
[]
[]
[]
[]
[]
[]
[]
[]
[]
[]
[]
[]
[]
[]
[]
[]
[]
[]
[]
[]
[]
[]
[]
[]
[]
[]
[]
[]
[]
[]
[]
[]
[]
[]
[]
[]
[]
[]
[]
[]
[]
[]
[]
[]
[]
[]
[]
[]
[]
[]
[]
[]
[]
[]
[]
[]
[]
[]
[]
[]
[]
[]
[]
[]
[]
[]
[]
[]
[]
[]
[]
[]
[]
[]
[]
[]
[]
[]
[]
[]
[]
[]
[]
[]
[]
[]
[]
[]
[]
[]
[]
[]
[]
[]
[]
[]
[]
[]
[]
[]
[]
[]
[]
[]
[]
[]
[]
[]
[]
[]
[]
[]
[]
[]
[]
[]
[]
[]
[]
[]
[]
[]
[]
[]
[]
[]
[]
[]
[]
[]
[]
[]
[]
[]
[]
[]
[]
[]
[]
[]
[]
[]
[]
[]
[]
[]
[]
[]
[]
[]
[]
[]
[]
[]
[]
[]
[]
[]
[]
[]
[]
[]
[]
[]
[]
[]
[]
[]
[]
[]
[]
[]
[]
[]
[]
[]
[]
[]
[]
[]
[]
[]
[]
[]
[]
[]
[]
[]
[]
[]
[]
[]
[]
[]
[]
[]
[]
[]
[]
[]
[]
[]
[]
[]
[]
[]
[]
[]
[]
[]
[]
[]
[]
[]
[]
[]
[]
[]
[]
[]
[]
[]
[]
[]
[]
[]
[]
[]
[]
[]
[]
[]
[]
[]
[]
[]
[]
[]
[]
[]
[]
[]
[]
[]
[]
[]
[]
[]
[]
[]
[]
[]
[]
[]
[]
[]
[]
[]
[]
[]
[]
[]
[]
[]
[]
[]
[]
[]
[]
[]
[]
[]
[]
[]
[]
[]
[]
[]
[]
[]
[]
[]
[]
[]
[]
[]
[]
[]
[]
[]
[]
[]
[]
[]
[]
[]
[]
[]
[]
[]
[]
[]
[]
[]
[]
[]
[]
[]
[]
[]
[]
[]
[]
[]
[]
[]
[]
[]
[]
[]
[]
[]
[]
[]
[]
[]
[]
[]
[]
[]
[]
[]
[]
[]
[]
[]
[]
[]
[]
[]
[]
[]
[]
[]
[]
[]
[]
[]
[]
[]
[]
[]
[]
[]
[]
[]
[]
[]
[]
[]
[]
[]
[]
[]
[]
[]
[]
[]
[]
[]
[]
[]
[]
[]
[]
[]
[]
[]
[]
[]
[]
[]
[]
[]
[]
[]
[]
[]
[]
[]
[]
[]
[]
[]
[]
[]
[]
[]
[]
[]
[]
[]
[]
[]
[]
[]
[]
[]
[]
[]
[]
[]
[]
[]
[]
[]
[]
[]
[]
[]
[]
[]
[]
[]
[]
[]
[]
[]
[]
[]
[]
[]
[]
[]
[]
[]
[]
[]
[]
[]
[]
[]
[]
[]
[]
[]
[]
[]
[]
[]
[]
[]
[]
[]
[]
[]
[]
[]
[]
[]
[]
[]
[]
[]
[]
[]
[]
[]
[]
[]
[]
[]
[]
[]
[]
[]
[]
[]
[]
[]
[]
[]
[]
[]
[]
[]
[]
[]
[]
[]
[]
[]
[]
[]
[]
[]
[]
[]
[]
[]
[]
[]
[]
[]
[]
[]
[]
[]
[]
[]
[]
[]
[]
[]
[]
[]
[]
[]
[]
[]
[]
[]
[]
[]
[]
[]
[]
[]
[]
[]
[]
[]
[]
[]
[]
[]
[]
[]
[]
[]
[]
[]
[]
[]
[]
[]
[]
[]
[]
[]
[]
[]
[]
[]
[]
[]
[]
[]
[]
[]
[]
[]
[]
[]
[]
[]
[]
[]
[]
[]
[]
[]
[]
[]
[]
[]
[]
[]
[]
[]
[]
[]
[]
[]
[]
[]
[]
[]
[]
[]
[]
[]
[]
[]
[]
[]
[]
[]
[]
[]
[]
[]
[]
[]
[]
[]
[]
[]
[]
[]
[]
[]
[]
[]
[]
[]
[]
[]
[]
[]
[]
[]
[]
[]
[]
[]
[]
[]
[]
[]
[]
[]
[]
[]
[]
[]
[]
[]
[]
[]
[]
[]
[]
[]
[]
[]
[]
[]
[]
[]
[]
[]
[]
[]
[]
[]
[]
[]
[]
[]
[]
[]
[]
[]
[]
[]
[]
[]
[]
[]
[]
[]
[]
[]
[]
[]
[]
[]
[]
[]
[]
[]
[]
[]
[]
[]
[]
[]
[]
[]
[]
[]
[]
[]
[]
[]
[]
[]
[]
[]
[]
[]
[]
[]
[]
[]
[]
[]
[]
[]
[]
[]
[]
[]
[]
[]
[]
[]
[]
[]
[]
[]
[]
[]
[]
[]
[]
[]
[]
[]
[]
[]
[]
[]
[]
[]
[]
[]
[]
[]
[]
[]
[]
[]
[]
[]
[]
[]
[]
[]
[]
[]
[]
[]
[]
[]
[]
[]
[]
[]
[]
[]
[]
[]
[]
[]
[]
[]
[]
[]
[]
[]
[]
[]
[]
[]
[]
[]
[]
[]
[]
[]
[]
[]
[]
[]
[]
[]
[]
[]
[]
[]
[]
[]
[]
[]
[]
[]
[]
[]
[]
[]
[]
[]
[]
[]
[]
[]
[]
[]
[]
[]
[]
[]
[]
[]
[]
[]
[]
[]
[]
[]
[]
[]
[]
[]
[]
[]
[]
[]
[]
[]
[]
[]
[]
[]
[]
[]
[]
[]
[]
[]
[]
[]
[]
[]
[]
[]
[]
[]
[]
[]
[]
[]
[]
[]
[]
[]
[]
[]
[]
[]
[]
[]
[]
[]
[]
[]
[]
[]
[]
[]
[]
[]
[]
[]
[]
[]
[]
[]
[]
[]
[]
[]
[]
[]
[]
[]
[]
[]
[]
[]
[]
[]
[]
[]
[]
[]
[]
[]
[]
[]
[]
[]
[]
[]
[]
[]
[]
[]
[]
[]
[]
[]
[]
[]
[]
[]
[]
[]
[]
[]
[]
[]
[]
[]
[]
[]
[]
[]
[]
[]
[]
[]
[]
[]
[]
[]
[]
[]
[]
[]
[]
[]
[]
[]
[]
[]
[]
[]
[]
[]
[]
[]
[]
[]
[]
[]
[]
[]
[]
[]
[]
[]
[]
[]
[]
[]
[]
[]
[]
[]
[]
[]
[]
[]
[]
[]
[]
[]
[]
[]
[]
[]
[]
[]
[]
[]
[]
[]
[]
[]
[]
[]
[]
[]
[]
[]
[]
[]
[]
[]
[]
[]
[]
[]
[]
[]
[]
[]
[]
[]
[]
[]
[]
[]
[]
[]
[]
[]
[]
[]
[]
[]
[]
[]
[]
[]
[]
[]
[]
[]
[]
[]
[]
[]
[]
[]
[]
[]
[]
[]
[]
[]
[]
[]
[]
[]
[]
[]
[]
[]
[]
[]
[]
[]
[]
[]
[]
[]
[]
[]
[]
[]
[]
[]
[]
[]
[]
[]
[]
[]
[]
[]
[]
[]
[]
[]
[]
[]
[]
[]
[]
[]
[]
[]
[]
[]
[]
[]
[]
[]
[]
[]
[]
[]
[]
[]
[]
[]
[]
[]
[]
[]
[]
[]
[]
[]
[]
[]
[]
[]
[]
[]
[]
[]
[]
[]
[]
[]
[]
[]
[]
[]
[]
[]
[]
[]
[]
[]
[]
[]
[]
[]
[]
[]
[]
[]
[]
[]
[]
[]
[]
[]
[]
[]
[]
[]
[]
[]
[]
[]
[]
[]
[]
[]
[]
[]
[]
[]
[]
[]
[]
[]
[]
[]
[]
[]
[]
[]
[]
[]
[]
[]
[]
[]
[]
[]
[]
[]
[]
[]
[]
[]
[]
[]
[]
[]
[]
[]
[]
[]
[]
[]
[]
[]
[]
[]
[]
[]
[]
[]
[]
[]
[]
[]
[]
[]
[]
[]
[]
[]
[]
[]
[]
[]
[]
[]
[]
[]
[]
[]
[]
[]
[]
[]
[]
[]
[]
[]
[]
[]
[]
[]
[]
[]
[]
[]
[]
[]
[]
[]
[]
[]
[]
[]
[]
[]
[]
[]
[]
[]
[]
[]
[]
[]
[]
[]
[]
[]
[]
[]
[]
[]
[]
[]
[]
[]
[]
[]
[]
[]
[]
[]
[]
[]
[]
[]
[]
[]
[]
[]
[]
[]
[]
[]
[]
[]
[]
[]
[]
[]
[]
[]
[]
[]
[]
[]
[]
[]
[]
[]
[]
[]
[]
[]
[]
[]
[]
[]
[]
[]
[]
[]
[]
[]
[]
[]
[]
[]
[]
[]
[]
[]
[]
[]
[]
[]
[]
[]
[]
[]
[]
[]
[]
[]
[]
[]
[]
[]
[]
[]
[]
[]
[]
[]
[]
[]
[]
[]
[]
[]
[]
[]
[]
[]
[]
[]
[]
[]
[]
[]
[]
[]
[]
[]
[]
[]
[]
[]
[]
[]
[]
[]
[]
[]
[]
[]
[]
[]
[]
[]
[]
[]
[]
[]
[]
[]
[]
[]
[]
[]
[]
[]
[]
[]
[]
[]
[]
[]
[]
[]
[]
[]
[]
[]
[]
[]
[]
[]
[]
[]
[]
[]
[]
[]
[]
[]
[]
[]
[]
[]
[]
[]
[]
[]
[]
[]
[]
[]
[]
[]
[]
[]
[]
[]
[]
[]
[]
[]
[]
[]
[]
[]
[]
[]
[]
[]
[]
[]
[]
[]
[]
[]
[]
[]
[]
[]
[]
[]
[]
[]
[]
[]
[]
[]
[]
[]
[]
[]
[]
[]
[]
[]
[]
[]
[]
[]
[]
[]
[]
[]
[]
[]
[]
[]
[]
[]
[]
[]
[]
[]
[]
[]
[]
[]
[]
[]
[]
[]
[]
[]
[]
[]
[]
[]
[]
[]
[]
[]
[]
[]
[]
[]
[]
[]
[]
[]
[]
[]
[]
[]
[]
[]
[]
[]
[]
[]
[]
[]
[]
[]
[]
[]
[]
[]
[]
[]
[]
[]
[]
[]
[]
[]
[]
[]
[]
[]
[]
[]
[]
[]
[]
[]
[]
[]
[]
[]
[]
[]
[]
[]
[]
[]
[]
[]
[]
[]
[]
[]
[]
[]
[]
[]
[]
[]
[]
[]
[]
[]
[]
[]
[]
[]
[]
[]
[]
[]
[]
[]
[]
[]
[]
[]
[]
[]
[]
[]
[]
[]
[]
[]
[]
[]
[]
[]
[]
[]
[]
[]
[]
[]
[]
[]
[]
[]
[]
[]
[]
[]
[]
[]
[]
[]
[]
[]
[]
[]
[]
[]
[]
[]
[]
[]
[]
[]
[]
[]
[]
[]
[]
[]
[]
[]
[]
[]
[]
[]
[]
[]
[]
[]
[]
[]
[]
[]
[]
[]
[]
[]
[]
[]
[]
[]
[]
[]
[]
[]
[]
[]
[]
[]
[]
[]
[]
[]
[]
[]
[]
[]
[]
[]
[]
[]
[]
[]
[]
[]
[]
[]
[]
[]
[]
[]
[]
[]
[]
[]
[]
[]
[]
[]
[]
[]
[]
[]
[]
[]
[]
[]
[]
[]
[]
[]
[]
[]
[]
[]
[]
[]
[]
[]
[]
[]
[]
[]
[]
[]
[]
[]
[]
[]
[]
[]
[]
[]
[]
[]
[]
[]
[]
[]
[]
[]
[]
[]
[]
[]
[]
[]
[]
[]
[]
[]
[]
[]
[]
[]
[]
[]
[]
[]
[]
[]
[]
[]
[]
[]
[]
[]
[]
[]
[]
[]
[]
[]
[]
[]
[]
[]
[]
[]
[]
[]
[]
[]
[]
[]
[]
[]
[]
[]
[]
[]
[]
[]
[]
[]
[]
[]
[]
[]
[]
[]
[]
[]
[]
[]
[]
[]
[]
[]
[]
[]
[]
[]
[]
[]
[]
[]
[]
[]
[]
[]
[]
[]
[]
[]
[]
[]
[]
[]
[]
[]
[]
[]
[]
[]
[]
[]
[]
[]
[]
[]
[]
[]
[]
[]
[]
[]
[]
[]
[]
[]
[]
[]
[]
[]
[]
[]
[]
[]
[]
[]
[]
[]
[]
[]
[]
[]
[]
[]
[]
[]
[]
[]
[]
[]
[]
[]
[]
[]
[]
[]
[]
[]
[]
[]
[]
[]
[]
[]
[]
[]
[]
[]
[]
[]
[]
[]
[]
[]
[]
[]
[]
[]
[]
[]
[]
[]
[]
[]
[]
[]
[]
[]
[]
[]
[]
[]
[]
[]
[]
[]
[]
[]
[]
[]
[]
[]
[]
[]
[]
[]
[]
[]
[]
[]
[]
[]
[]
[]
[]
[]
[]
[]
[]
[]
[]
[]
[]
[]
[]
[]
[]
[]
[]
[]
[]
[]
[]
[]
[]
[]
[]
[]
[]
[]
[]
[]
[]
[]
[]
[]
[]
[]
[]
[]
[]
[]
[]
[]
[]
[]
[]
[]
[]
[]
[]
[]
[]
[]
[]
[]
[]
[]
[]
[]
[]
[]
[]
[]
[]
[]
[]
[]
[]
[]
[]
[]
[]
[]
[]
[]
[]
[]
[]
[]
[]
[]
[]
[]
[]
[]
[]
[]
[]
[]
[]
[]
[]
[]
[]
[]
[]
[]
[]
[]
[]
[]
[]
[]
[]
[]
[]
[]
[]
[]
[]
[]
[]
[]
[]
[]
[]
[]
[]
[]
[]
[]
[]
[]
[]
[]
[]
[]
[]
[]
[]
[]
[]
[]
[]
[]
[]
[]
[]
[]
[]
[]
[]
[]
[]
[]
[]
[]
[]
[]
[]
[]
[]
[]
[]
[]
[]
[]
[]
[]
[]
[]
[]
[]
[]
[]
[]
[]
[]
[]
[]
[]
[]
[]
[]
[]
[]
[]
[]
[]
[]
[]
[]
[]
[]
[]
[]
[]
[]
[]
[]
[]
[]
[]
[]
[]
[]
[]
[]
[]
[]
[]
[]
[]
[]
[]
[]
[]
[]
[]
[]
[]
[]
[]
[]
[]
[]
[]
[]
[]
[]
[]
[]
[]
[]
[]
[]
[]
[]
[]
[]
[]
[]
[]
[]
[]
[]
[]
[]
[]
[]
[]
[]
[]
[]
[]
[]
[]
[]
[]
[]
[]
[]
[]
[]
[]
[]
[]
[]
[]
[]
[]
[]
[]
[]
[]
[]
[]
[]
[]
[]
[]
[]
[]
[]
[]
[]
[]
[]
[]
[]
[]
[]
[]
[]
[]
[]
[]
[]
[]
[]
[]
[]
[]
[]
[]
[]
[]
[]
[]
[]
[]
[]
[]
[]
[]
[]
[]
[]
[]
[]
[]
[]
[]
[]
[]
[]
[]
[]
[]
[]
[]
[]
[]
[]
[]
[]
[]
[]
[]
[]
[]
[]
[]
[]
[]
[]
[]
[]
[]
[]
[]
[]
[]
[]
[]
[]
[]
[]
[]
[]
[]
[]
[]
[]
[]
[]
[]
[]
[]
[]
[]
[]
[]
[]
[]
[]
[]
[]
[]
[]
[]
[]
[]
[]
[]
[]
[]
[]
[]
[]
[]
[]
[]
[]
[]
[]
[]
[]
[]
[]
[]
[]
[]
[]
[]
[]
[]
[]
[]
[]
[]
[]
[]
[]
[]
[]
[]
[]
[]
[]
[]
[]
[]
[]
[]
[]
[]
[]
[]
[]
[]
[]
[]
[]
[]
[]
[]
[]
[]
[]
[]
[]
[]
[]
[]
[]
[]
[]
[]
[]
[]
[]
[]
[]
[]
[]
[]
[]
[]
[]
[]
[]
[]
[]
[]
[]
[]
[]
[]
[]
[]
[]
[]
[]
[]
[]
[]
[]
[]
[]
[]
[]
[]
[]
[]
[]
[]
[]
[]
[]
[]
[]
[]
[]
[]
[]
[]
[]
[]
[]
[]
[]
[]
[]
[]
[]
[]
[]
[]
[]
[]
[]
[]
[]
[]
[]
[]
[]
[]
[]
[]
[]
[]
[]
[]
[]
[]
[]
[]
[]
[]
[]
[]
[]
[]
[]
[]
[]
[]
[]
[]
[]
[]
[]
[]
[]
[]
[]
[]
[]
[]
[]
[]
[]
[]
[]
[]
[]
[]
[]
[]
[]
[]
[]
[]
[]
[]
[]
[]
[]
[]
[]
[]
[]
[]
[]
[]
[]
[]
[]
[]
[]
[]
[]
[]
[]
[]
[]
[]
[]
[]
[]
[]
[]
[]
[]
[]
[]
[]
[]
[]
[]
[]
[]
[]
[]
[]
[]
[]
[]
[]
[]
[]
[]
[]
[]
[]
[]
[]
[]
[]
[]
[]
[]
[]
[]
[]
[]
[]
[]
[]
[]
[]
[]
[]
[]
[]
[]
[]
[]
[]
[]
[]
[]
[]
[]
[]
[]
[]
[]
[]
[]
[]
[]
[]
[]
[]
[]
[]
[]
[]
[]
[]
[]
[]
[]
[]
[]
[]
[]
[]
[]
[]
[]
[]
[]
[]
[]
[]
[]
[]
[]
[]
[]
[]
[]
[]
[]
[]
[]
[]
[]
[]
[]
[]
[]
[]
[]
[]
[]
[]
[]
[]
[]
[]
[]
[]
[]
[]
[]
[]
[]
[]
[]
[]
[]
[]
[]
[]
[]
[]
[]
[]
[]
[]
[]
[]
[]
[]
[]
[]
[]
[]
[]
[]
[]
[]
[]
[]
[]
[]
[]
[]
[]
[]
[]
[]
[]
[]
[]
[]
[]
[]
[]
[]
[]
[]
[]
[]
[]
[]
[]
[]
[]
[]
[]
[]
[]
[]
[]
[]
[]
[]
[]
[]
[]
[]
[]
[]
[]
[]
[]
[]
[]
[]
[]
[]
[]
[]
[]
[]
[]
[]
[]
[]
[]
[]
[]
[]
[]
[]
[]
[]
[]
[]
[]
[]
[]
[]
[]
[]
[]
[]
[]
[]
[]
[]
[]
[]
[]
[null,null,null,null,null,null,null,null,null,null,null,null,null,null,"30/08/2016",null,"30/08/2016"]

{"sheet":"Edition ANGLAIS","index":2,"n_rows":41,"n_cols":8,"rows_kept":41,"cut":false,"hidden":false,"merged":[[25,0,25,9],[32,1,32,3],[21,0,21,9],[19,0,19,9],[23,0,23,9],[27,0,28,9],[26,0,26,9]]}
[]
[]
[]
[]
[null,null,null,null,null,null,null,"To Whom It May Concern"]
[]
[]
[]
[]
[]
[]
[]
["REACH compliance statement"]
[]
[]
[]
[]
["Dear Customer,"]
[]
["Registration, Evaluation and Authorization of Chemicals (REACH, Regulation (EC) no 1907/2006 is an European regulation, which applies to materials imported to Europe."]
[]
["The European Chemical Agency (ECHA) oversees REACH compliance and regulatory updates a list of SVHC (Substances of Very High Concern)."]
[]
["We, VYGON SA, 5 rue Adeline, 95440 Ecouen (France) hereby declare that although we do not routinely analyze purchased raw materials or products for substances listed on the current Candidate List of SVHC, none of these substances are expected to be present in our products in a concentration above 0.1% or greater, either intentionally or as an impurity, based on information received from our suppliers and knowledge of our manufacturing processes."]
[]
["We are therefore please to confirm that to the best of our knowledge the product : "]
["Premier produit (851.5654)"]
["do not contain in a concentration above 0.1% or greater any substance(s) included on the current Candidate List of SVHC."]
[]
[]
[]
[]
["Ecouen,","January, 2nd 2016"]
[]
[]
[]
[]
[]
[]
["Véronique LE SAUX"]
["Technical Regulatory Affairs Manager"]

{"sheet":"Edition FRANCAIS","index":3,"n_rows":41,"n_cols":8,"rows_kept":41,"cut":false,"hidden":false,"merged":[[27,0,28,9],[19,0,19,9],[21,0,21,9],[23,0,23,9],[25,0,25,9],[26,0,26,9]]}
[]
[]
[]
[]
[null,null,null,null,null,null,null,"To Whom It May Concern"]
[]
[]
[]
[]
[]
[]
[]
["Certificat de conformité REACH"]
[]
[]
[]
[]
["Dear Customer,"]
[]
["Registration, Evaluation and Authorization of Chemicals (REACH, Regulation (EC) no 1907/2006 is an European regulation, which applies to materials imported to Europe."]
[]
["The European Chemical Agency (ECHA) oversees REACH compliance and regulatory updates a list of SVHC (Substances of Very High Concern)."]
[]
["We, VYGON SA, 5 rue Adeline, 95440 Ecouen (France) hereby declare that although we do not routinely analyze purchased raw materials or products for substances listed on the current Candidate List of SVHC, none of these substances are expected to be present in our products in a concentration above 0.1% or greater, either intentionally or as an impurity, based on information received from our suppliers and knowledge of our manufacturing processes."]
[]
["We are therefore please to confirm that to the best of our knowledge the product : "]
["Premier produit (851.5654)"]
["do not contain in a concentration above 0.1% or greater any substance(s) included on the current Candidate List of SVHC."]
[]
[]
[]
[]
["Ecouen,","02 janvier 2016"]
[]
[]
[]
[]
[]
[]
["Véronique LE SAUX"]
["Technical Regulatory Affairs Manager"]

{"sheet":"Listes","index":4,"n_rows":3,"n_cols":1,"rows_kept":3,"cut":false,"hidden":false,"merged":[]}
["Créateur"]
["Virginie REBOUILLEAU"]
["Jasmine HADJA"]

{"sheet":"Feuil1","index":5,"n_rows":9,"n_cols":4,"rows_kept":9,"cut":false,"hidden":false,"merged":[]}
[]
[]
[]
[]
[null,null,null,"Ela_1005 - 30 août 2016 à 14:06 "]
[null,null,null,"Bonjour f894009,"]
[]
[null,null,null,"Je suis de nouveau bloquée (grrr) au moment de l'édition de mon certificat. Je souhaite que lorsque je clique sur le bouton \"Edition certificat Anglais\" (après avoir choisi le n° de demande à suivre) la date de clôture de la demande et la date d'édition du certificat se remplisse dans mon onglet suivi sur la ligne choisie."]
[null,null,null,"Ensuite je récupérerai des données de mon UF de suivi et de mon tableau de suivi pour les mettre dans le certificat."]